Workbook

Sheet ReadMe!
A1: Rawmix Optimizer
A2: Version V7, M. Fisch / (U. Eggenberger), IfG, Uni Bern
A4: This Rawmix Optimizer has been designed as part of the UTF project 559.17.17
A6: Das Verwertungspotenzial von Kieswaschschlämmen in der Klinkerporduktion
A8: which supported by the Federal Office of Environment, 3063 Ittingen, Switzerland, and carried out by
A9: Jura-Cement Fabriken AG, 5103 Wildegg, Switzerland, and the
A10: Institute of Geological Sciences, University of Bern, 3012 Bern, Switzerland.
A12: Purpose:
B14: The goal of Rawmix Optimizer is to find cost-efficient rawmixes that include gravel wash mud as replacements
B15: of conventional rawmaterial (i.e. as secondary raw materials) for the production of cement clinker.
B17: Rawmix Optimizer can also be used for adding any type of secondary raw materials to e.g. brick raw materials, etc. | Q17: Figure 1. The Rawmix Optimizer part in the "Rawmix Optimizer" sheet.
B19: In a first step (sheet "Rawmix Optimizer"), the mixture of available materials is optimized, so that chemical constraints
B20: (i.e. chemical composition range) are met and the cost of the resulting mix is minimized.
B22: In a second step (sheet "Rawmix Modifier"), the resulting mixture can be manually adjusted to specific needs.
B23: The user is responsible that the desired chemical composition is met.
A25: Requirements:
B27: Rawmix Optimizer has been written and tested in Excel of Microsoft Office Professional Plus 2013.
B28: The Solver Add-In must be installed and correclty referenced in the Visual Basic Editor:
B29: Install the Solver Add-In: File -> Options -> Add-Ins -> Manage Excel Add-Ins -> Select the Solver.
B30: Reference: Switch on the Developer Ribbon (File -> Options -> Customize Ribbon), then open the VBA Editor
B31: (Developer Ribbon -> Visual Basic) and in the Tools menu -> References, check the Solver Add-In.
B32: Make sure Automatic Workbook Calculation is switched on (File -> Options -> Formulas).
B33: (Installing on a Mac the ActiveX package is needed - on your own risc! Not recommended)
A35: How to use Rawmix Optimizer:
A37: Rawmix Optimizer consists of three Excel Sheets in one Workbook: "Materials", "Rawmix Optimizer" and "Rawmix Modifier".
A38: In general, yellow fields can be modified by the user.
B40: Sheet "Materials":
C42: This sheet contains the list of available materials that may be used to compute the rawmix.
C43: At the bottom of this sheet, four material types can be defined. They can later be used for calculation of mixing proportions.
C45: All parameters marked with asterisk (*) are mandatory. Total cost and Clinker Composition parameters are calculated
C46: and cannot be modified by the user. All entries of non-mandatory fileds must be filled in order that these values can be
C47: used in the optimization process!
B49: Sheet "Rawmix Optimizer":
C51: This sheet consists of two parts: "Rawmix Optimizer" (left) and "Rawmix Requirements and Optimized Result" (right).
C53: In the left part, up to twelve materials from the "Materials" sheet can be selected (1 in Fig. 1).
C54: For each material, the Material Type is shown and the minimum and maximum quantity that should be used for the
C55: optimization can be restricted.
C56: Parameters of each material can be reset by clicking the reset button below the selected material.
C57: All minimum and maximum values can be reset by clicking the reset buttons on the left. | Q57: Figure 2. The Requirements and Results part in the "Rawmix Optimizer" sheet.
C59: By clicking Optimize Rawmix button, amounts of the selected materials are optimized in order that the constraints
C60: set on the right side (Fig. 2) are met as good as possible.
C62: For process optimization purposes, the percentages of each material type and the total percentage and amount per day
C63: are shown in the lower part (2 in Fig. 1).
C66: In the right part (Fig. 2), target values of the optimized material must be entered in the yellow cells (1 in Fig. 2). Amount and
C67: Chemical Composition must be filled in, other values are optional, but in this case, lower limits must be set to 0 and maximum
C68: values must be set to 100.
C69: Size Distribution and Clinker Composition parameters are not used during the optimization. They are derived from the
C70: resulting raw material mix. Nevertheless, corresponding result cells will be highlighted in yellow if the limits are exceeded.
C72: The composition of the resulting raw mix is shown on the right (2 in Fig. 2). Cells exceeding the limits will be highlighted in red.
C73: At the bottom right, the optimized material costs are shown.
Q74: Figure 3. The Manual Rawmix Optimizer.
C75: For process optimization purposes, the sum percentages od the different material types can be summed in 3 in Fig. 2.
C76: In the example shown, the sum of "Primary High Calcium" and "Secondary High Calcium" (i.e. limestone), as well as the
C77: sum of "Primary Low Calcium" and "Secondary Low Calcium" (i.e. claystone) can be calculated. These two parameters can be
C78: changed in order to show e.g. the sum of all "Primary" and all "Secondary" material types, as defined in the Materials sheet.
B80: Sheet "Rawmix Modifier"
C82: This sheet works the same way as the Rawmix Optimizer, but all values can be manually changed.
C84: By clicking the Get Solution From Rawmix Optimizer, the results from the Rawmix Optimizer are copied to the Manual Optimizer.
C85: By clicking the Remove/Add buttons, the amount of each material can be changed. It is up to the user to make sure that the target
C86: amount of material is satisfied (cf. 2 in Fig. 2). All minimum and maximum values are only used to highlight when a target value
C87: exceeds the range.
C89: Of course, materials can be changed. When done so, their proportion (in tonnes) are reset.

Sheet Materials
A1: List of Raw Materials
E2: Available | F2: Costs (/t) | I2: Chemical Composition | R2: Mineralogical Composition | AE2: Clinker Composition
A3: No. | B3: Material Name* | C3: Type* | D3: Comment | E3: amount (t/day)* | F3: Transport* | G3: Material* | H3: Total | I3: Al2O3* | J3: CaO* | K3: Fe2O3* | L3: K2O* | M3: MgO* | N3: Na2O* | O3: SiO2* | P3: SO3* | Q3: LOI* | R3: Calcite | S3: Dolomite | T3: Quartz | U3: Fspars | V3: Illite | W3: Chlorite | X3: Smectites | Y3: Kaolinite | Z3: d10 | AA3: d20 | AB3: d50 | AC3: d80 | AD3: d90 | AE3: LSF | AF3: SR | AG3: AR | AH3: Na_eq
A4: 1 | B4: KWS01 | C4: SecLowCa | D4: Kieswaschschlamm | E4: 100 | F4: 1.12 | G4: 2 | H4: =IF(OR(F4>0,G4>0),SUM(F4:G4),"") -> 3.12 | I4: 5.059565773 | J4: 33.57905363 | K4: 2.469465483 | L4: 1.021847786 | M4: 2.199811206 | N4: 1.00268814 | O4: 24.9643091 | P4: 0.3122312679 | Q4: 29.07 | R4: 50.78921147 | S4: 5.188187871 | T4: 15.52606549 | U4: 7.321436659 | V4: 12.2831543 | W4: 4.955106495 | X4: 2.636535645 | Y4: 1.300203564 | Z4: 1.077 | AA4: 2.086 | AB4: 8.971 | AC4: 37.7 | AD4: 60.242 | AE4: =IFERROR(((100*J4)/(2.8*O4+1.2*I4+0.65*K4)),"") -> 43.28497466 | AF4: =IFERROR((O4/(I4+K4)),"") -> 3.315739868 | AG4: =IFERROR((I4/K4),"") -> 2.048850575 | AH4: =IF(OR(L4="",N4=""),"",(N4+0.658*L4)) -> 1.675063983
A5: 2 | B5: KWS02 | C5: SecLowCa | D5: Kieswaschschlamm | E5: 50 | F5: 6.4 | G5: 1 | H5: 7.4 | I5: 7.181930565 | J5: 22.09457709 | K5: 3.419966936 | L5: 1.34412654 | M5: 2.497371204 | N5: 1.083254643 | O5: 41.46908745 | P5: 0.1352079951 | Q5: 20.55 | R5: 33.33295542 | S5: 5.262799873 | T5: 27.8445422 | U5: 8.009840824 | V5: 16.17394561 | W5: 5.217725355 | X5: 2.618446985 | Y5: 1.539882055 | Z5: 1.303 | AA5: 2.697 | AB5: 13.067 | AC5: 45.17 | AD5: 66.618 | AE5: =IFERROR(((100*J5)/(2.8*O5+1.2*I5+0.65*K5)),"") -> 17.40350701 | AF5: =IFERROR((O5/(I5+K5)),"") -> 3.911477869 | AG5: =IFERROR((I5/K5),"") -> 2.1 | AH5: =IF(OR(L5="",N5=""),"",(N5+0.658*L5)) -> 1.967689907
A6: 3 | B6: KWS03 | C6: SecLowCa | D6: Kieswaschschlamm | E6: 50 | F6: 5.12 | G6: 1 | H6: 6.12 | I6: 6.114784893 | J6: 19.08452121 | K6: 1.799950436 | L6: 1.379401269 | M6: 1.068194885 | N6: 1.643506146 | O6: 53.20788065 | P6: 0.1261647502 | Q6: 16.03 | R6: 29.79910192 | S6: 0.9939660414 | T6: 39.40198325 | U6: 13.99270312 | V6: 11.49981503 | W6: 2.577544747 | X6: 1.437476878 | Y6: 0.2974090093 | Z6: 1.141 | AA6: 2.285 | AB6: 15.969 | AC6: 150.814 | AD6: 242.915 | AE6: 12.11794299 | AF6: 6.722635494 | AG6: 3.397196262 | AH6: 2.551152181
A7: 4 | B7: KWS04 | C7: SecLowCa | D7: Kieswaschschlamm | E7: 80 | F7: 6.4 | G7: 1 | H7: 7.4 | I7: 12.90795206 | J7: 14.23405254 | K7: 5.011626483 | L7: 2.29053719 | M7: 1.687764245 | N7: 1.25893435 | O7: 48.32516808 | P7: 0.09472146273 | Q7: 13.97 | R7: 22.15215536 | S7: 0.3595817328 | T7: 23.16794708 | U7: 11.58023901 | V7: 31.86104074 | W7: 3.07820812 | X7: 6.896329165 | Y7: 0.9044219733 | Z7: 1.615 | AA7: 2.997 | AB7: 7.832 | AC7: 19.591 | AD7: 32.105 | AE7: 9.23943725 | AF7: 2.696780394 | AG7: 2.575601375 | AH7: 2.766107821
A8: 5 | B8: KWS05 | C8: SecLowCa | D8: Kieswaschschlamm | E8: 40 | F8: 6.72 | G8: 1 | H8: 7.72 | I8: 5.95425221 | J8: 31.74291003 | K8: 2.469084412 | L8: 1.209139954 | M8: 2.164258909 | N8: 0.3627419862 | O8: 27.95962466 | P8: 0.1476746402 | Q8: 27.46083182 | R8: 53.71 | S8: 5.66 | T8: 18.78 | U8: 7.41 | V8: 8.357375271 | W8: 3.336374828 | X8: 1.418221258 | Y8: 0.898028643 | Z8: 1.157 | AA8: 2.273 | AB8: 8.702 | AC8: 25.249 | AD8: 37.128 | AE8: 36.4706112 | AF8: 3.319305154 | AG8: 2.411522336 | AH8: 1.158356076
A9: 6 | B9: KWS06 | C9: SecLowCa | D9: Kieswaschschlamm | E9: 40 | F9: 6.72 | G9: 1 | H9: 7.72 | I9: 5.649790554 | J9: 31.98885269 | K9: 2.331083249 | L9: 1.140124829 | M9: 2.004295878 | N9: 0.7893730505 | O9: 28.1835953 | P9: 0.2614298971 | Q9: 27.44 | R9: 52.92801281 | S9: 4.015122962 | T9: 18.70112127 | U9: 6.943135777 | V9: 9.876377303 | W9: 4.002873864 | X9: 2.387905538 | Y9: 1.145450475 | Z9: 0.996 | AA9: 1.9 | AB9: 7.471 | AC9: 26.231 | AD9: 40.793 | AE9: 36.68066999 | AF9: 3.531392175 | AG9: 2.423676012 | AH9: 1.539575188
A10: 7 | B10: KWS07 | C10: SecLowCa | D10: Kieswaschschlamm | E10: 40 | F10: 7.2 | G10: 1 | H10: 8.2 | I10: 7.692609025 | J10: 24.59783107 | K10: 3.556963652 | L10: 1.419699158 | M10: 2.723661972 | N10: 0.8217280453 | O10: 35.81654072 | P10: 0.1157363444 | Q10: 22.9 | R10: 39.10050274 | S10: 6.340866887 | T10: 21.57706418 | U10: 6.265002944 | V10: 18.24698213 | W10: 3.532328903 | X10: 3.770037629 | Y10: 1.167651342 | Z10: 1.157 | AA10: 2.179 | AB10: 7.958 | AC10: 27.535 | AD10: 42.628 | AE10: 21.99583956 | AF10: 3.183813443 | AG10: 2.162689805 | AH10: 1.755890091
A11: 8 | B11: KWS08 | C11: SecLowCa | D11: Kieswaschschlamm | E11: 40 | F11: 7.68 | G11: 1 | H11: 8.68 | I11: 7.617957118 | J11: 22.7902273 | K11: 2.879172977 | L11: 1.451893004 | M11: 2.500482395 | N11: 0.5009927093 | O11: 40.23960045 | P11: 0.02931866694 | Q11: 21.43782943 | R11: 37.22 | S11: 7.42 | T11: 25.68 | U11: 9.625 | V11: 12.46885347 | W11: 4.216204712 | X11: 2.428997429 | Y11: 0.5709443881 | Z11: 1.163 | AA11: 2.203 | AB11: 7.519 | AC11: 23.002 | AD11: 34.874 | AE11: 18.42618864 | AF11: 3.833390658 | AG11: 2.645883794 | AH11: 1.456338306
A12: 9 | B12: KWS09 | C12: SecLowCa | D12: Kieswaschschlamm | E12: 50 | F12: 7.68 | G12: 1 | H12: 8.68 | I12: 6.927774976 | J12: 26.00623955 | K12: 2.588145198 | L12: 1.277850457 | M12: 1.213957934 | N12: 0.4070866455 | O12: 39.85453045 | P12: 0.01960215299 | Q12: 21.13060142 | R12: 43.295 | S12: 0.785 | T12: 29.91 | U12: 8.47 | V12: 13.77650602 | W12: 2.117442246 | X12: 1.043674699 | Y12: 0.3873770311 | Z12: 1.407 | AA12: 3.024 | AB12: 10.29 | AC12: 26.619 | AD12: 39.705 | AE12: 21.38876643 | AF12: 4.188195121 | AG12: 2.676733508 | AH12: 1.247912246
A13: 10 | B13: KWS10 | C13: SecLowCa | D13: Kieswaschschlamm | E13: 50 | F13: 8 | G13: 1 | H13: 9 | I13: 9.409520314 | J13: 16.32332556 | K13: 4.291618136 | L13: 1.745314252 | M13: 2.765522099 | N13: 1.424918399 | O13: 48.14369264 | P13: 0.1096091076 | Q13: 15.81 | R13: 26.22597191 | S13: 4.576722113 | T13: 31.16221658 | U13: 12.89727242 | V13: 15.15167123 | W13: 4.805142684 | X13: 4.683243836 | Y13: 0.4979422471 | Z13: 1.639 | AA13: 3.185 | AB13: 10.138 | AC13: 29.743 | AD13: 44.734 | AE13: 10.96383802 | AF13: 3.513846154 | AG13: 2.192534381 | AH13: 2.573335176
A14: 11 | B14: KWS11 | C14: SecLowCa | D14: Kieswaschschlamm | E14: 50 | F14: 8.8 | G14: 1 | H14: 9.8 | I14: 9.731045775 | J14: 21.41795931 | K14: 4.112956486 | L14: 1.786842152 | M14: 1.955867761 | N14: 1.277350674 | O14: 40.12346004 | P14: 0.1126837393 | Q14: 19.68 | R14: 34.53143321 | S14: 3.065527194 | T14: 22.33809867 | U14: 7.799675295 | V14: 23.90751464 | W14: 4.321581239 | X14: 3.358907016 | Y14: 0.6772627315 | Z14: 1.283 | AA14: 2.485 | AB14: 7.51 | AC14: 24.65 | AD14: 44.186 | AE14: 16.90495173 | AF14: 2.898255814 | AG14: 2.365949119 | AH14: 2.45309281
A15: 12 | B15: KWS12 | C15: SecLowCa | D15: Kieswaschschlamm | E15: 10 | F15: 9.6 | G15: 1 | H15: 10.6 | I15: 9.825922082 | J15: 17.76629466 | K15: 3.85880151 | L15: 1.890302854 | M15: 2.639118477 | N15: 0.6437987981 | O15: 46.21128804 | P15: 0.02873326088 | Q15: 16.38053237 | R15: 28.66 | S15: 2.985 | T15: 29.175 | U15: 11.945 | V15: 15.64158879 | W15: 5.884796232 | X15: 4.46105919 | Y15: 0.8625557929 | Z15: 1.464 | AA15: 2.712 | AB15: 8.264 | AC15: 24.249 | AD15: 37.713 | AE15: 12.3642419 | AF15: 3.376852132 | AG15: 2.546366289 | AH15: 1.887618076
A16: 13 | B16: KWS13 | C16: SecLowCa | D16: Kieswaschschlamm | E16: 20 | F16: 9.6 | G16: 1 | H16: 10.6 | I16: 10.69927567 | J16: 17.25635528 | K16: 4.402131448 | L16: 2.071098034 | M16: 2.540658722 | N16: 1.329024447 | O16: 45.84086215 | P16: 0.1006201474 | Q16: 16.37 | R16: 27.13907437 | S16: 2.570803592 | T16: 24.69145752 | U16: 10.92677872 | V16: 21.05409026 | W16: 6.636328879 | X16: 6.078269302 | Y16: 0.9033115534 | Z16: 1.591 | AA16: 2.967 | AB16: 8.26 | AC16: 22.913 | AD16: 36.975 | AE16: 11.97901054 | AF16: 3.035535813 | AG16: 2.43047619 | AH16: 2.691806953
A17: 14 | B17: KWS14 | C17: SecLowCa | D17: Kieswaschschlamm | E17: 50 | F17: 9.76 | G17: 1 | H17: 10.76 | I17: 8.28018556 | J17: 24.07213037 | K17: 3.606899013 | L17: 1.529011538 | M17: 1.944589033 | N17: 0.826450339 | O17: 37.90380397 | P17: 0.2430736291 | Q17: 21.78 | R17: 37.53049457 | S17: 1.994899091 | T17: 23.98758039 | U17: 5.421379463 | V17: 22.63195367 | W17: 6.786265278 | X17: 1.297491202 | Y17: 0.3499363311 | Z17: 1.272 | AA17: 2.409 | AB17: 7.646 | AC17: 23.156 | AD17: 37.392 | AE17: 20.329241 | AF17: 3.188654354 | AG17: 2.295652174 | AH17: 1.832539931
A18: 15 | B18: KWS15 | C18: SecLowCa | D18: Kieswaschschlamm | E18: 50 | F18: 9.6 | G18: 1 | H18: 10.6 | I18: 5.079873529 | J18: 29.97844926 | K18: 2.234846585 | L18: 0.985361532 | M18: 2.066389232 | N18: 0.237252097 | O18: 31.73112791 | P18: 0.04300155992 | Q18: 27.15235685 | R18: 48.86 | S18: 9.305 | T18: 23.495 | U18: 4.155 | V18: 10.16149871 | W18: 2.417469753 | X18: 0.5921619294 | Y18: 0.5788696101 | Z18: 1.169 | AA18: 2.32 | AB18: 9.769 | AC18: 35.254 | AD18: 59.999 | AE18: 31.09937761 | AF18: 4.337982509 | AG18: 2.273030088 | AH18: 0.8856199851
A19: 16 | B19: KWS16 | C19: SecLowCa | D19: Kieswaschschlamm | E19: 50 | F19: 9.6 | G19: 1 | H19: 10.6 | I19: 6.000427554 | J19: 27.87343232 | K19: 2.573730978 | L19: 1.157066376 | M19: 3.137429982 | N19: 0.6222940318 | O19: 32.21243123 | P19: 0.140924751 | Q19: 25.85 | R19: 42.88250788 | S19: 9.321057335 | T19: 22.37547622 | U19: 4.062602888 | V19: 15.72633491 | W19: 3.550179327 | X19: 0.8664647333 | Y19: 1.215376706 | Z19: 1.242 | AA19: 2.448 | AB19: 10.438 | AC19: 37.323 | AD19: 56.359 | AE19: 28.13558688 | AF19: 3.756920415 | AG19: 2.331412104 | AH19: 1.383643707
A20: 17 | B20: KWS17 | C20: SecLowCa | D20: Kieswaschschlamm | E20: 50 | F20: 11.2 | G20: 1 | H20: 12.2 | I20: 9.266988231 | J20: 21.95364836 | K20: 3.669695078 | L20: 1.766292796 | M20: 1.661444365 | N20: 1.338833809 | O20: 41.0279975 | P20: 0.1048484308 | Q20: 19.53 | R20: 36.88155747 | S20: 0.9384471905 | T20: 24.81697365 | U20: 10.33807414 | V20: 20.56026332 | W20: 5.694990781 | X20: 0.428696066 | Y20: 0.3410498281 | Z20: 1.202 | AA20: 2.307 | AB20: 7.95 | AC20: 27.252 | AD20: 45.555 | AE20: 17.09997707 | AF20: 3.171446384 | AG20: 2.525274725 | AH20: 2.501054469
A21: 18 | B21: KWS18 | C21: SecLowCa | D21: Kieswaschschlamm | E21: 50 | F21: 11.52 | G21: 1 | H21: 12.52 | I21: 9.306156636 | J21: 15.76297973 | K21: 4.107372624 | L21: 1.782916312 | M21: 3.465856008 | N21: 1.423000495 | O21: 47.36392164 | P21: 0.1333021541 | Q21: 16.84 | R21: 21.27502196 | S21: 8.868059729 | T21: 29.31787712 | U21: 11.77823494 | V21: 17.60427055 | W21: 5.605762889 | X21: 4.782769428 | Y21: 0.7681971366 | Z21: 1.565 | AA21: 2.98 | AB21: 9.331 | AC21: 29.94 | AD21: 47.439 | AE21: 10.76293387 | AF21: 3.531055901 | AG21: 2.265720081 | AH21: 2.596159428
A22: 19 | B22: KWS19 | C22: SecLowCa | D22: Kieswaschschlamm | E22: 50 | F22: 12 | G22: 1 | H22: 13 | I22: 8.491771922 | J22: 19.18267392 | K22: 3.253394674 | L22: 1.606106232 | M22: 2.215602956 | N22: 1.018024258 | O22: 46.25585947 | P22: 0.09883730657 | Q22: 17.71 | R22: 29.61452335 | S22: 4.166666667 | T22: 29.25578101 | U22: 9.607211407 | V22: 15.20821786 | W22: 4.010181801 | X22: 7.718204122 | Y22: 0.4193962166 | Z22: 1.937 | AA22: 3.949 | AB22: 19.813 | AC22: 77.019 | AD22: 122.08 | AE22: 13.52595281 | AF22: 3.93828892 | AG22: 2.610126582 | AH22: 2.074842158
A23: 20 | B23: KWS20 | C23: SecLowCa | D23: Kieswaschschlamm | E23: 50 | F23: 12.8 | G23: 1 | H23: 13.8 | I23: 9.716624551 | J23: 19.27868961 | K23: 3.832279362 | L23: 1.732492491 | M23: 1.805825506 | N23: 0.478497926 | O23: 45.45651136 | P23: 0.02266199178 | Q23: 16.9073372 | R23: 32.65 | S23: 0.69 | T23: 30.52 | U23: 9.67 | V23: 16.30025867 | W23: 4.096809942 | X23: 4.849663735 | Y23: 0.7932676576 | Z23: 1.902 | AA23: 3.744 | AB23: 10.742 | AC23: 27.304 | AD23: 43.934 | AE23: 13.63133969 | AF23: 3.354995478 | AG23: 2.535468747 | AH23: 1.618477985
A24: 21 | B24: Test21
A25: 22 | B25: RAW1 | C25: PrimHighCa | D25: Primäre Komponente1 | E25: 5000 | F25: 0 | G25: 8.5 | H25: 8.5 | I25: 1.933333333 | J25: 44.53 | K25: 1.606666667 | L25: 0.985361532 | M25: 0.7633333333 | N25: 0.237252097 | O25: 9.223333333 | P25: 0.237252097 | Q25: 40.48346761 | R25: 34.53143321 | S25: 3.065527194 | T25: 22.33809867 | U25: 7.799675295 | V25: 23.90751464 | W25: 4.321581239 | X25: 3.358907016 | Y25: 0.6772627315 | Z25: 1.157 | AA25: 2.179 | AB25: 7.958 | AC25: 27.535 | AD25: 42.628 | AE25: 152.553986 | AF25: 2.605461394 | AG25: 1.203319502 | AH25: 0.8856199851
A26: 23 | B26: RAW2 | C26: PrimHighCa | D26: Primäre Komponente2 | E26: 5000 | F26: 0 | G26: 8.25 | H26: 8.25 | I26: 1.974444444 | J26: 43.11555556 | K26: 1.507777778 | L26: 1.157066376 | M26: 1.283333333 | N26: 0.6222940318 | O26: 10.20888889 | P26: 0.6222940318 | Q26: 39.50834556 | R26: 28.66 | S26: 2.985 | T26: 29.175 | U26: 11.945 | V26: 15.64158879 | W26: 5.884796232 | X26: 4.46105919 | Y26: 0.8625557929 | Z26: 1.163 | AA26: 2.203 | AB26: 7.519 | AC26: 23.002 | AD26: 34.874 | AE26: 135.0134043 | AF26: 2.931716656 | AG26: 1.309506264 | AH26: 1.383643707
A27: 24 | B27: RAW3 | C27: PrimHighCa | D27: Primäre Komponente3 | E27: 5000 | F27: 0 | G27: 8.5 | H27: 8.5 | I27: 0.9413513957 | J27: 50.21893897 | K27: 0.6189780564 | L27: 1.766292796 | M27: 0.7630932726 | N27: 1.338833809 | O27: 3.762336941 | P27: 1.338833809 | Q27: 39.25134095 | R27: 27.13907437 | S27: 2.570803592 | T27: 24.69145752 | U27: 10.92677872 | V27: 21.05409026 | W27: 6.636328879 | X27: 6.078269302 | Y27: 0.9033115534 | Z27: 1.407 | AA27: 3.024 | AB27: 10.29 | AC27: 26.619 | AD27: 39.705 | AE27: 416.1847715 | AF27: 2.411245225 | AG27: 1.520815457 | AH27: 2.501054469
A28: 25 | B28: RAW4 | C28: PrimHighCa | D28: Primäre Komponente4 | E28: 5000 | F28: 0 | G28: 8 | H28: 8 | I28: 2.15726087 | J28: 40.93417391 | K28: 0.9235615942 | L28: 1.782916312 | M28: 5.058641304 | N28: 1.423000495 | O28: 8.394996377 | P28: 1.423000495 | Q28: 37.90244864 | R28: 37.53049457 | S28: 1.994899091 | T28: 23.98758039 | U28: 5.421379463 | V28: 22.63195367 | W28: 6.786265278 | X28: 1.297491202 | Y28: 0.3499363311 | Z28: 1.639 | AA28: 3.185 | AB28: 10.138 | AC28: 29.743 | AD28: 44.734 | AE28: 153.3401252 | AF28: 2.724920529 | AG28: 2.335806169 | AH28: 2.596159428
A29: 26 | B29: RAW5 | C29: PrimHighCa | D29: Primäre Komponente5 | E29: 5000 | F29: 0 | G29: 8 | H29: 8 | I29: 1.013791667 | J29: 41.25908333 | K29: 0.448875 | L29: 1.606106232 | M29: 10.3838125 | N29: 1.018024258 | O29: 4.113708333 | P29: 1.018024258 | Q29: 39.13857442 | R29: 48.86 | S29: 9.305 | T29: 23.495 | U29: 4.155 | V29: 10.16149871 | W29: 2.417469753 | X29: 0.5921619294 | Y29: 0.5788696101 | Z29: 1.283 | AA29: 2.485 | AB29: 7.51 | AC29: 24.65 | AD29: 44.186 | AE29: 316.7270048 | AF29: 2.812471513 | AG29: 2.258516662 | AH29: 2.074842158
A30: 27 | B30: RAW6 | C30: PrimHighCa | D30: Primäre Komponente6 | E30: 5000 | F30: 0 | G30: 8 | H30: 8 | I30: 0.9507916667 | J30: 43.89604167 | K30: 0.4277916667 | L30: 1.732492491 | M30: 7.571583333 | N30: 0.478497926 | O30: 3.728958333 | P30: 0.478497926 | Q30: 40.73534499 | R30: 42.88250788 | S30: 9.321057335 | T30: 22.37547622 | U30: 4.062602888 | V30: 15.72633491 | W30: 3.550179327 | X30: 0.8664647333 | Y30: 1.215376706 | Z30: 1.464 | AA30: 2.712 | AB30: 8.264 | AC30: 24.249 | AD30: 37.713 | AE30: 370.1153395 | AF30: 2.70492051 | AG30: 2.222557709 | AH30: 1.618477985
A31: 28 | B31: RAW7 | C31: PrimLowCa | D31: Primäre Komponente7 | E31: 5000 | F31: 0 | G31: 7.75 | H31: 7.75 | I31: 8.86 | J31: 17.58 | K31: 3.36 | L31: 1.606106232 | M31: 2.38 | N31: 1.018024258 | O31: 46.04 | P31: 1.018024258 | Q31: 18.13784525 | R31: 37.53049457 | S31: 1.994899091 | T31: 23.98758039 | U31: 5.421379463 | V31: 22.63195367 | W31: 6.786265278 | X31: 1.297491202 | Y31: 0.3499363311 | Z31: 1.639 | AA31: 3.185 | AB31: 10.138 | AC31: 29.743 | AD31: 44.734 | AE31: 12.40404154 | AF31: 3.767594108 | AG31: 2.636904762 | AH31: 2.074842158
A32: 29 | B32: RAW8 | C32: PrimLowCa | D32: Primäre Komponente8 | E32: 5000 | F32: 0 | G32: 7.8 | H32: 7.8 | I32: 11.12 | J32: 15.72 | K32: 11.12 | L32: 1.732492491 | M32: 4.02 | N32: 0.478497926 | O32: 46.9 | P32: 0.478497926 | Q32: 8.430511657 | R32: 48.86 | S32: 9.305 | T32: 23.495 | U32: 4.155 | V32: 10.16149871 | W32: 2.417469753 | X32: 0.5921619294 | Y32: 0.5788696101 | Z32: 1.283 | AA32: 2.485 | AB32: 7.51 | AC32: 24.65 | AD32: 44.186 | AE32: 10.34945883 | AF32: 2.10881295 | AG32: 1 | AH32: 1.618477985
A33: 30 | B33: Test30
A34: 31 | B34: RAW9 | C34: PrimLowCa | D34: Primäre Komponente9 Clay | E34: 5000 | F34: 0 | G34: 7.8 | H34: 7.8 | I34: 11.5 | J34: 13.9 | K34: 5.5 | L34: 2.2 | M34: 4.3 | N34: 0.2 | O34: 43.8 | P34: 0 | Q34: 17.1 | R34: 19.3 | S34: 8.1 | T34: 22 | U34: 8.44 | V34: 25.3 | W34: 7.5 | X34: 0 | Y34: 0 | Z34: 1.5 | AA34: 2.6 | AB34: 7.9 | AC34: 25.6 | AD34: 46.6 | AE34: 9.927507767 | AF34: 2.576470588 | AG34: 2.090909091 | AH34: 1.6476
A35: 32 | B35: Test32
A36: 33 | B36: Test33
A37: 34 | B37: Test34
A38: 35 | B38: Test35
A39: 36 | B39: Test36
A40: 37 | B40: Test37
A41: 38 | B41: Test38
A42: 39 | B42: Test39
A43: 40 | B43: Test40
A44: 41 | B44: Test41
A45: 42 | B45: Test42
A46: 43 | B46: Test43
A47: 44 | B47: Test44
A48: 45 | B48: Test45
A49: 46 | B49: Test46
A50: 47 | B50: Test47
A51: 48 | B51: Test48
A52: 49 | B52: Test49
A53: 50 | B53: Test50
A55: Material Types
A57: A | B57: PrimHighCa
A58: B | B58: PrimLowCa
A59: C | B59: SecHighCa
A60: D | B60: SecLowCa

Sheet Rawmix Optimizer
A1: Rawmix Optimizer | Q1: Rawmix Requirements and Optimized Result
A3: Material | C3: RAW1 | D3: RAW2 | E3: RAW3 | F3: RAW4 | G3: RAW5 | H3: RAW6 | I3: RAW7 | J3: RAW8 | K3: KWS01 | L3: KWS02 | M3: KWS04 | N3: KWS05 | Q3: Amount | S3: 1200 | T3: t/d | V3: =C73*S3/100 -> 1198.2 | W3: t/d
R4: +/- | S4: 0.15 | T4: ="% (+/-"&FIXED((C71-C68),1)&" t)" -> % (+/-1,8 t)
Q5: Chemical Composition | S5: MIN | T5: MAX | V5: RESULT
C6: =IF((_xlfn.IFNA(VLOOKUP(C$3,Materials!$B$4:$AH$53,2,FALSE),0))=0,"None",(_xlfn.IFNA(VLOOKUP(C$3,Materials!$B$4:$AH$53,2,FALSE),0))) -> PrimHighCa | D6: =IF((_xlfn.IFNA(VLOOKUP(D$3,Materials!$B$4:$AH$53,2,FALSE),0))=0,"None",(_xlfn.IFNA(VLOOKUP(D$3,Materials!$B$4:$AH$53,2,FALSE),0))) -> PrimHighCa | E6: =IF((_xlfn.IFNA(VLOOKUP(E$3,Materials!$B$4:$AH$53,2,FALSE),0))=0,"None",(_xlfn.IFNA(VLOOKUP(E$3,Materials!$B$4:$AH$53,2,FALSE),0))) -> PrimHighCa | F6: =IF((_xlfn.IFNA(VLOOKUP(F$3,Materials!$B$4:$AH$53,2,FALSE),0))=0,"None",(_xlfn.IFNA(VLOOKUP(F$3,Materials!$B$4:$AH$53,2,FALSE),0))) -> PrimHighCa | G6: =IF((_xlfn.IFNA(VLOOKUP(G$3,Materials!$B$4:$AH$53,2,FALSE),0))=0,"None",(_xlfn.IFNA(VLOOKUP(G$3,Materials!$B$4:$AH$53,2,FALSE),0))) -> PrimHighCa | H6: =IF((_xlfn.IFNA(VLOOKUP(H$3,Materials!$B$4:$AH$53,2,FALSE),0))=0,"None",(_xlfn.IFNA(VLOOKUP(H$3,Materials!$B$4:$AH$53,2,FALSE),0))) -> PrimHighCa | I6: =IF((_xlfn.IFNA(VLOOKUP(I$3,Materials!$B$4:$AH$53,2,FALSE),0))=0,"None",(_xlfn.IFNA(VLOOKUP(I$3,Materials!$B$4:$AH$53,2,FALSE),0))) -> PrimLowCa | J6: =IF((_xlfn.IFNA(VLOOKUP(J$3,Materials!$B$4:$AH$53,2,FALSE),0))=0,"None",(_xlfn.IFNA(VLOOKUP(J$3,Materials!$B$4:$AH$53,2,FALSE),0))) -> PrimLowCa | K6: =IF((_xlfn.IFNA(VLOOKUP(K$3,Materials!$B$4:$AH$53,2,FALSE),0))=0,"None",(_xlfn.IFNA(VLOOKUP(K$3,Materials!$B$4:$AH$53,2,FALSE),0))) -> SecLowCa | L6: =IF((_xlfn.IFNA(VLOOKUP(L$3,Materials!$B$4:$AH$53,2,FALSE),0))=0,"None",(_xlfn.IFNA(VLOOKUP(L$3,Materials!$B$4:$AH$53,2,FALSE),0))) -> SecLowCa | M6: =IF((_xlfn.IFNA(VLOOKUP(M$3,Materials!$B$4:$AH$53,2,FALSE),0))=0,"None",(_xlfn.IFNA(VLOOKUP(M$3,Materials!$B$4:$AH$53,2,FALSE),0))) -> SecLowCa | N6: =IF((_xlfn.IFNA(VLOOKUP(N$3,Materials!$B$4:$AH$53,2,FALSE),0))=0,"None",(_xlfn.IFNA(VLOOKUP(N$3,Materials!$B$4:$AH$53,2,FALSE),0))) -> SecLowCa | R6: Al2O3 | S6: 3.1 | T6: 3.5 | U6: % | V6: =IFERROR(SUMPRODUCT(C30:N30,$C$17:$N$17)/100,0) -> 3.1 | W6: %
A7: Minimum | R7: CaO | S7: 41 | T7: 41.69 | U7: % | V7: 41 | W7: %
B8: % | C8: =C65/10 -> 0 | D8: =D65/10 -> 0 | E8: 0 | F8: 0 | G8: 0 | H8: 0 | I8: 0 | J8: 0 | K8: =K65/10 -> 0 | L8: 0 | M8: 0 | N8: 0 | R8: Fe2O3 | S8: 1.65 | T8: 1.71 | U8: % | V8: 1.68550119 | W8: %
B9: t | C9: =IF((C8*$C$68/100)<C24,C8*$C$68/100,C24) -> 0 | D9: =IF((D8*$C$68/100)<D24,D8*$C$68/100,D24) -> 0 | E9: 0 | F9: 0 | G9: 0 | H9: 0 | I9: 0 | J9: 0 | K9: 0 | L9: 0 | M9: 0 | N9: 0 | R9: K2O | S9: 0.1 | T9: 4 | U9: % | V9: 1.706045485 | W9: %
R10: MgO | S10: 0.1 | T10: 2.8 | U10: % | V10: 2.700407241 | W10: %
A11: Maximum | R11: Na2O | S11: 0.1 | T11: 4 | U11: % | V11: 1.168463836 | W11: %
B12: % | C12: =C66/10 -> 100 | D12: =D66/10 -> 100 | E12: =E66/10 -> 100 | F12: =F66/10 -> 100 | G12: 100 | H12: 100 | I12: 100 | J12: 100 | K12: 8.3 | L12: 4.2 | M12: 6.7 | N12: 3.3 | R12: SiO2 | S12: 12.9 | T12: 13.1 | U12: % | V12: 13.1 | W12: %
B13: t | C13: =IF((C12*$C$68/100)<C24,C12*$C$68/100,C24) -> 1200 | D13: 1200 | E13: 1200 | F13: 1200 | G13: 1200 | H13: 1200 | I13: 1200 | J13: 1200 | K13: 99.6 | L13: 50 | M13: 80 | N13: 39.6 | R13: SO3 | S13: 0.1 | T13: 1 | U13: % | V13: 1 | W13: %
R14: LOI | S14: 33 | T14: 36 | U14: % | V14: 34.32460513 | W14: %
R15: Sum | S15: 99.5 | T15: 100.5 | U15: % | V15: =SUM(V6:V14) -> 99.78502289 | W15: %
A16: Rawmix
B17: % | C17: 0 | D17: 0 | E17: 44.39120818 | F17: 21.19335124 | G17: 0 | H17: 9.080962366 | I17: 0 | J17: 4.136044908 | K17: 8.3 | L17: 2.748433309 | M17: 6.7 | N17: 3.3 | Q17: Mineralogical Composition | S17: MIN | T17: MAX | V17: RESULT
B18: t | C18: =C17*$C$68/100 -> 0 | D18: 0 | E18: 532.6944982 | F18: 254.3202148 | G18: 0 | H18: 108.9715484 | I18: 0 | J18: 49.6325389 | K18: 99.6 | L18: 32.98119971 | M18: 80.4 | N18: 39.6 | R18: Calcite | S18: 0 | T18: 100 | U18: % | V18: =IFERROR(SUMPRODUCT(C41:N41,$C$17:$N$17)/100,0) -> 34.30461149 | W18: %
R19: Dolomite | S19: 0 | T19: 100 | U19: % | V19: 3.581433547 | W19: %
C20: =Materials!B57&" "&FIXED(IF((SUMIF(C6:N6,Materials!B57,'Rawmix Optimizer'!C17:N17))>=100,100,(SUMIF(C6:N6,Materials!B57,'Rawmix Optimizer'!C17:N17))),1)&" of "&FIXED(IF((SUMIF(C6:N6,Materials!B57,'Rawmix Optimizer'!C12:N12))>=100,"100",(SUMIF(C6:N6,Materials!B57,'Rawmix Optimizer'!C12:N12))),1)&" % used" -> PrimHighCa 74,7 of 100,0 % used | G20: =Materials!B59&" "&FIXED(IF((SUMIF(C6:N6,Materials!B59,'Rawmix Optimizer'!C17:N17))>=100,100,(SUMIF(C6:N6,Materials!B59,'Rawmix Optimizer'!C17:N17))),1)&" of "&FIXED(IF((SUMIF(C6:N6,Materials!B59,'Rawmix Optimizer'!C12:N12))>=100,"100",(SUMIF(C6:N6,Materials!B59,'Rawmix Optimizer'!C12:N12))),1)&" % used" -> SecHighCa 0,0 of 0,0 % used | M20: Sum | N20: =FIXED(SUM(C17:N17),1)&" %" -> 99,9 % | R20: Quartz | S20: 0 | T20: 100 | U20: % | V20: 23.27422536 | W20: %
C21: =Materials!B58&" "&FIXED(IF((SUMIF(C6:N6,Materials!B58,'Rawmix Optimizer'!C17:N17))>=100,100,(SUMIF(C6:N6,Materials!B58,'Rawmix Optimizer'!C17:N17))),1)&" of "&FIXED(IF((SUMIF(C6:N6,Materials!B58,'Rawmix Optimizer'!C12:N12))>=100,100,(SUMIF(C6:N6,Materials!B58,'Rawmix Optimizer'!C12:N12))),1)&" % used" -> PrimLowCa 4,1 of 100,0 % used | G21: =Materials!B60&" "&FIXED(IF((SUMIF(C6:N6,Materials!B60,'Rawmix Optimizer'!C17:N17))>=100,100,(SUMIF(C6:N6,Materials!B60,'Rawmix Optimizer'!C17:N17))),1)&" of "&FIXED(IF((SUMIF(C6:N6,Materials!B60,'Rawmix Optimizer'!C12:N12))>=100,100,(SUMIF(C6:N6,Materials!B60,'Rawmix Optimizer'!C12:N12))),1)&" % used" -> SecLowCa 21,0 of 22,5 % used | M21: = | N21: =FIXED(V3,1)&" t/d" -> 1.198,2 t/d | R21: Fspars | S21: 0 | T21: 100 | U21: % | V21: 8.388507577 | W21: %
R22: Illite | S22: 0 | T22: 100 | U22: % | V22: 19.86553621 | W22: %
R23: Chlorite | S23: 0 | T23: 100 | U23: % | V23: 5.677581542 | W23: %
A24: Amount (t/d) | C24: =_xlfn.IFNA(VLOOKUP(C$3,Materials!$B$4:$AH$53,4,FALSE),0) -> 5000 | D24: =_xlfn.IFNA(VLOOKUP(D$3,Materials!$B$4:$AH$53,4,FALSE),0) -> 5000 | E24: =_xlfn.IFNA(VLOOKUP(E$3,Materials!$B$4:$AH$53,4,FALSE),0) -> 5000 | F24: =_xlfn.IFNA(VLOOKUP(F$3,Materials!$B$4:$AH$53,4,FALSE),0) -> 5000 | G24: =_xlfn.IFNA(VLOOKUP(G$3,Materials!$B$4:$AH$53,4,FALSE),0) -> 5000 | H24: =_xlfn.IFNA(VLOOKUP(H$3,Materials!$B$4:$AH$53,4,FALSE),0) -> 5000 | I24: =_xlfn.IFNA(VLOOKUP(I$3,Materials!$B$4:$AH$53,4,FALSE),0) -> 5000 | J24: =_xlfn.IFNA(VLOOKUP(J$3,Materials!$B$4:$AH$53,4,FALSE),0) -> 5000 | K24: =_xlfn.IFNA(VLOOKUP(K$3,Materials!$B$4:$AH$53,4,FALSE),0) -> 100 | L24: =_xlfn.IFNA(VLOOKUP(L$3,Materials!$B$4:$AH$53,4,FALSE),0) -> 50 | M24: =_xlfn.IFNA(VLOOKUP(M$3,Materials!$B$4:$AH$53,4,FALSE),0) -> 80 | N24: =_xlfn.IFNA(VLOOKUP(N$3,Materials!$B$4:$AH$53,4,FALSE),0) -> 40 | R24: Smectites | S24: 0 | T24: 100 | U24: % | V24: 3.87602855 | W24: %
A25: Costs (/t) | R25: Kaolinite | S25: 0 | T25: 100 | U25: % | V25: 0.8499351008 | W25: %
B26: Transport | C26: =_xlfn.IFNA(VLOOKUP(C$3,Materials!$B$4:$AH$53,5,FALSE),0) -> 0 | D26: =_xlfn.IFNA(VLOOKUP(D$3,Materials!$B$4:$AH$53,5,FALSE),0) -> 0 | E26: =_xlfn.IFNA(VLOOKUP(E$3,Materials!$B$4:$AH$53,5,FALSE),0) -> 0 | F26: =_xlfn.IFNA(VLOOKUP(F$3,Materials!$B$4:$AH$53,5,FALSE),0) -> 0 | G26: =_xlfn.IFNA(VLOOKUP(G$3,Materials!$B$4:$AH$53,5,FALSE),0) -> 0 | H26: =_xlfn.IFNA(VLOOKUP(H$3,Materials!$B$4:$AH$53,5,FALSE),0) -> 0 | I26: =_xlfn.IFNA(VLOOKUP(I$3,Materials!$B$4:$AH$53,5,FALSE),0) -> 0 | J26: =_xlfn.IFNA(VLOOKUP(J$3,Materials!$B$4:$AH$53,5,FALSE),0) -> 0 | K26: =_xlfn.IFNA(VLOOKUP(K$3,Materials!$B$4:$AH$53,5,FALSE),0) -> 1.12 | L26: =_xlfn.IFNA(VLOOKUP(L$3,Materials!$B$4:$AH$53,5,FALSE),0) -> 6.4 | M26: =_xlfn.IFNA(VLOOKUP(M$3,Materials!$B$4:$AH$53,5,FALSE),0) -> 6.4 | N26: =_xlfn.IFNA(VLOOKUP(N$3,Materials!$B$4:$AH$53,5,FALSE),0) -> 6.72
B27: Material | C27: =_xlfn.IFNA(VLOOKUP(C$3,Materials!$B$4:$AH$53,6,FALSE),0) -> 8.5 | D27: =_xlfn.IFNA(VLOOKUP(D$3,Materials!$B$4:$AH$53,6,FALSE),0) -> 8.25 | E27: =_xlfn.IFNA(VLOOKUP(E$3,Materials!$B$4:$AH$53,6,FALSE),0) -> 8.5 | F27: =_xlfn.IFNA(VLOOKUP(F$3,Materials!$B$4:$AH$53,6,FALSE),0) -> 8 | G27: =_xlfn.IFNA(VLOOKUP(G$3,Materials!$B$4:$AH$53,6,FALSE),0) -> 8 | H27: =_xlfn.IFNA(VLOOKUP(H$3,Materials!$B$4:$AH$53,6,FALSE),0) -> 8 | I27: =_xlfn.IFNA(VLOOKUP(I$3,Materials!$B$4:$AH$53,6,FALSE),0) -> 7.75 | J27: =_xlfn.IFNA(VLOOKUP(J$3,Materials!$B$4:$AH$53,6,FALSE),0) -> 7.8 | K27: =_xlfn.IFNA(VLOOKUP(K$3,Materials!$B$4:$AH$53,6,FALSE),0) -> 2 | L27: =_xlfn.IFNA(VLOOKUP(L$3,Materials!$B$4:$AH$53,6,FALSE),0) -> 1 | M27: =_xlfn.IFNA(VLOOKUP(M$3,Materials!$B$4:$AH$53,6,FALSE),0) -> 1 | N27: =_xlfn.IFNA(VLOOKUP(N$3,Materials!$B$4:$AH$53,6,FALSE),0) -> 1 | Q27: Material Type Amounts | S27: MIN | T27: MAX | V27: RESULT
B28: Total | C28: =_xlfn.IFNA(VLOOKUP(C$3,Materials!$B$4:$AH$53,7,FALSE),0) -> 8.5 | D28: =_xlfn.IFNA(VLOOKUP(D$3,Materials!$B$4:$AH$53,7,FALSE),0) -> 8.25 | E28: =_xlfn.IFNA(VLOOKUP(E$3,Materials!$B$4:$AH$53,7,FALSE),0) -> 8.5 | F28: =_xlfn.IFNA(VLOOKUP(F$3,Materials!$B$4:$AH$53,7,FALSE),0) -> 8 | G28: =_xlfn.IFNA(VLOOKUP(G$3,Materials!$B$4:$AH$53,7,FALSE),0) -> 8 | H28: =_xlfn.IFNA(VLOOKUP(H$3,Materials!$B$4:$AH$53,7,FALSE),0) -> 8 | I28: =_xlfn.IFNA(VLOOKUP(I$3,Materials!$B$4:$AH$53,7,FALSE),0) -> 7.75 | J28: =_xlfn.IFNA(VLOOKUP(J$3,Materials!$B$4:$AH$53,7,FALSE),0) -> 7.8 | K28: =_xlfn.IFNA(VLOOKUP(K$3,Materials!$B$4:$AH$53,7,FALSE),0) -> 3.12 | L28: =_xlfn.IFNA(VLOOKUP(L$3,Materials!$B$4:$AH$53,7,FALSE),0) -> 7.4 | M28: =_xlfn.IFNA(VLOOKUP(M$3,Materials!$B$4:$AH$53,7,FALSE),0) -> 7.4 | N28: =_xlfn.IFNA(VLOOKUP(N$3,Materials!$B$4:$AH$53,7,FALSE),0) -> 7.72 | R28: =Materials!B57 -> PrimHighCa | S28: 0 | T28: 100 | U28: % | V28: =SUMIF($C$6:$N$6,R28,$C$17:$N$17) -> 74.66552178 | W28: %
A29: Chemical Composition | R29: =Materials!B58 -> PrimLowCa | S29: 0 | T29: 100 | U29: % | V29: =SUMIF($C$6:$N$6,R29,$C$17:$N$17) -> 4.136044908 | W29: %
B30: Al2O3 | C30: =_xlfn.IFNA(VLOOKUP(C$3,Materials!$B$4:$AH$53,8,FALSE),0) -> 1.933333333 | D30: =_xlfn.IFNA(VLOOKUP(D$3,Materials!$B$4:$AH$53,8,FALSE),0) -> 1.974444444 | E30: =_xlfn.IFNA(VLOOKUP(E$3,Materials!$B$4:$AH$53,8,FALSE),0) -> 0.9413513957 | F30: =_xlfn.IFNA(VLOOKUP(F$3,Materials!$B$4:$AH$53,8,FALSE),0) -> 2.15726087 | G30: =_xlfn.IFNA(VLOOKUP(G$3,Materials!$B$4:$AH$53,8,FALSE),0) -> 1.013791667 | H30: =_xlfn.IFNA(VLOOKUP(H$3,Materials!$B$4:$AH$53,8,FALSE),0) -> 0.9507916667 | I30: =_xlfn.IFNA(VLOOKUP(I$3,Materials!$B$4:$AH$53,8,FALSE),0) -> 8.86 | J30: =_xlfn.IFNA(VLOOKUP(J$3,Materials!$B$4:$AH$53,8,FALSE),0) -> 11.12 | K30: =_xlfn.IFNA(VLOOKUP(K$3,Materials!$B$4:$AH$53,8,FALSE),0) -> 5.059565773 | L30: =_xlfn.IFNA(VLOOKUP(L$3,Materials!$B$4:$AH$53,8,FALSE),0) -> 7.181930565 | M30: =_xlfn.IFNA(VLOOKUP(M$3,Materials!$B$4:$AH$53,8,FALSE),0) -> 12.90795206 | N30: =_xlfn.IFNA(VLOOKUP(N$3,Materials!$B$4:$AH$53,8,FALSE),0) -> 5.95425221 | R30: =Materials!B59 -> SecHighCa | S30: 0 | T30: 100 | U30: % | V30: =SUMIF($C$6:$N$6,R30,$C$17:$N$17) -> 0 | W30: %
B31: CaO | C31: =_xlfn.IFNA(VLOOKUP(C$3,Materials!$B$4:$AH$53,9,FALSE),0) -> 44.53 | D31: =_xlfn.IFNA(VLOOKUP(D$3,Materials!$B$4:$AH$53,9,FALSE),0) -> 43.11555556 | E31: =_xlfn.IFNA(VLOOKUP(E$3,Materials!$B$4:$AH$53,9,FALSE),0) -> 50.21893897 | F31: =_xlfn.IFNA(VLOOKUP(F$3,Materials!$B$4:$AH$53,9,FALSE),0) -> 40.93417391 | G31: =_xlfn.IFNA(VLOOKUP(G$3,Materials!$B$4:$AH$53,9,FALSE),0) -> 41.25908333 | H31: =_xlfn.IFNA(VLOOKUP(H$3,Materials!$B$4:$AH$53,9,FALSE),0) -> 43.89604167 | I31: =_xlfn.IFNA(VLOOKUP(I$3,Materials!$B$4:$AH$53,9,FALSE),0) -> 17.58 | J31: =_xlfn.IFNA(VLOOKUP(J$3,Materials!$B$4:$AH$53,9,FALSE),0) -> 15.72 | K31: =_xlfn.IFNA(VLOOKUP(K$3,Materials!$B$4:$AH$53,9,FALSE),0) -> 33.57905363 | L31: =_xlfn.IFNA(VLOOKUP(L$3,Materials!$B$4:$AH$53,9,FALSE),0) -> 22.09457709 | M31: =_xlfn.IFNA(VLOOKUP(M$3,Materials!$B$4:$AH$53,9,FALSE),0) -> 14.23405254 | N31: =_xlfn.IFNA(VLOOKUP(N$3,Materials!$B$4:$AH$53,9,FALSE),0) -> 31.74291003 | R31: =Materials!B60 -> SecLowCa | S31: 0 | T31: 100 | U31: % | V31: =SUMIF($C$6:$N$6,R31,$C$17:$N$17) -> 21.04843331 | W31: %
B32: Fe2O3 | C32: =_xlfn.IFNA(VLOOKUP(C$3,Materials!$B$4:$AH$53,10,FALSE),0) -> 1.606666667 | D32: =_xlfn.IFNA(VLOOKUP(D$3,Materials!$B$4:$AH$53,10,FALSE),0) -> 1.507777778 | E32: =_xlfn.IFNA(VLOOKUP(E$3,Materials!$B$4:$AH$53,10,FALSE),0) -> 0.6189780564 | F32: =_xlfn.IFNA(VLOOKUP(F$3,Materials!$B$4:$AH$53,10,FALSE),0) -> 0.9235615942 | G32: =_xlfn.IFNA(VLOOKUP(G$3,Materials!$B$4:$AH$53,10,FALSE),0) -> 0.448875 | H32: =_xlfn.IFNA(VLOOKUP(H$3,Materials!$B$4:$AH$53,10,FALSE),0) -> 0.4277916667 | I32: =_xlfn.IFNA(VLOOKUP(I$3,Materials!$B$4:$AH$53,10,FALSE),0) -> 3.36 | J32: =_xlfn.IFNA(VLOOKUP(J$3,Materials!$B$4:$AH$53,10,FALSE),0) -> 11.12 | K32: =_xlfn.IFNA(VLOOKUP(K$3,Materials!$B$4:$AH$53,10,FALSE),0) -> 2.469465483 | L32: =_xlfn.IFNA(VLOOKUP(L$3,Materials!$B$4:$AH$53,10,FALSE),0) -> 3.419966936 | M32: =_xlfn.IFNA(VLOOKUP(M$3,Materials!$B$4:$AH$53,10,FALSE),0) -> 5.011626483 | N32: =_xlfn.IFNA(VLOOKUP(N$3,Materials!$B$4:$AH$53,10,FALSE),0) -> 2.469084412
B33: K2O | C33: =_xlfn.IFNA(VLOOKUP(C$3,Materials!$B$4:$AH$53,11,FALSE),0) -> 0.985361532 | D33: =_xlfn.IFNA(VLOOKUP(D$3,Materials!$B$4:$AH$53,11,FALSE),0) -> 1.157066376 | E33: =_xlfn.IFNA(VLOOKUP(E$3,Materials!$B$4:$AH$53,11,FALSE),0) -> 1.766292796 | F33: =_xlfn.IFNA(VLOOKUP(F$3,Materials!$B$4:$AH$53,11,FALSE),0) -> 1.782916312 | G33: =_xlfn.IFNA(VLOOKUP(G$3,Materials!$B$4:$AH$53,11,FALSE),0) -> 1.606106232 | H33: =_xlfn.IFNA(VLOOKUP(H$3,Materials!$B$4:$AH$53,11,FALSE),0) -> 1.732492491 | I33: =_xlfn.IFNA(VLOOKUP(I$3,Materials!$B$4:$AH$53,11,FALSE),0) -> 1.606106232 | J33: =_xlfn.IFNA(VLOOKUP(J$3,Materials!$B$4:$AH$53,11,FALSE),0) -> 1.732492491 | K33: =_xlfn.IFNA(VLOOKUP(K$3,Materials!$B$4:$AH$53,11,FALSE),0) -> 1.021847786 | L33: =_xlfn.IFNA(VLOOKUP(L$3,Materials!$B$4:$AH$53,11,FALSE),0) -> 1.34412654 | M33: =_xlfn.IFNA(VLOOKUP(M$3,Materials!$B$4:$AH$53,11,FALSE),0) -> 2.29053719 | N33: =_xlfn.IFNA(VLOOKUP(N$3,Materials!$B$4:$AH$53,11,FALSE),0) -> 1.209139954 | Q33: = | R33: PrimHighCa
B34: MgO | C34: =_xlfn.IFNA(VLOOKUP(C$3,Materials!$B$4:$AH$53,12,FALSE),0) -> 0.7633333333 | D34: =_xlfn.IFNA(VLOOKUP(D$3,Materials!$B$4:$AH$53,12,FALSE),0) -> 1.283333333 | E34: =_xlfn.IFNA(VLOOKUP(E$3,Materials!$B$4:$AH$53,12,FALSE),0) -> 0.7630932726 | F34: =_xlfn.IFNA(VLOOKUP(F$3,Materials!$B$4:$AH$53,12,FALSE),0) -> 5.058641304 | G34: =_xlfn.IFNA(VLOOKUP(G$3,Materials!$B$4:$AH$53,12,FALSE),0) -> 10.3838125 | H34: =_xlfn.IFNA(VLOOKUP(H$3,Materials!$B$4:$AH$53,12,FALSE),0) -> 7.571583333 | I34: =_xlfn.IFNA(VLOOKUP(I$3,Materials!$B$4:$AH$53,12,FALSE),0) -> 2.38 | J34: =_xlfn.IFNA(VLOOKUP(J$3,Materials!$B$4:$AH$53,12,FALSE),0) -> 4.02 | K34: =_xlfn.IFNA(VLOOKUP(K$3,Materials!$B$4:$AH$53,12,FALSE),0) -> 2.199811206 | L34: =_xlfn.IFNA(VLOOKUP(L$3,Materials!$B$4:$AH$53,12,FALSE),0) -> 2.497371204 | M34: =_xlfn.IFNA(VLOOKUP(M$3,Materials!$B$4:$AH$53,12,FALSE),0) -> 1.687764245 | N34: =_xlfn.IFNA(VLOOKUP(N$3,Materials!$B$4:$AH$53,12,FALSE),0) -> 2.164258909 | Q34: + | R34: SecHighCa | S34: 70 | T34: 100 | U34: % | V34: =SUMIF(R28:R31,R33,V28:V31)+SUMIF(R28:R31,R34,V28:V31) -> 74.66552178 | W34: %
B35: Na2O | C35: =_xlfn.IFNA(VLOOKUP(C$3,Materials!$B$4:$AH$53,13,FALSE),0) -> 0.237252097 | D35: =_xlfn.IFNA(VLOOKUP(D$3,Materials!$B$4:$AH$53,13,FALSE),0) -> 0.6222940318 | E35: =_xlfn.IFNA(VLOOKUP(E$3,Materials!$B$4:$AH$53,13,FALSE),0) -> 1.338833809 | F35: =_xlfn.IFNA(VLOOKUP(F$3,Materials!$B$4:$AH$53,13,FALSE),0) -> 1.423000495 | G35: =_xlfn.IFNA(VLOOKUP(G$3,Materials!$B$4:$AH$53,13,FALSE),0) -> 1.018024258 | H35: =_xlfn.IFNA(VLOOKUP(H$3,Materials!$B$4:$AH$53,13,FALSE),0) -> 0.478497926 | I35: =_xlfn.IFNA(VLOOKUP(I$3,Materials!$B$4:$AH$53,13,FALSE),0) -> 1.018024258 | J35: =_xlfn.IFNA(VLOOKUP(J$3,Materials!$B$4:$AH$53,13,FALSE),0) -> 0.478497926 | K35: =_xlfn.IFNA(VLOOKUP(K$3,Materials!$B$4:$AH$53,13,FALSE),0) -> 1.00268814 | L35: =_xlfn.IFNA(VLOOKUP(L$3,Materials!$B$4:$AH$53,13,FALSE),0) -> 1.083254643 | M35: =_xlfn.IFNA(VLOOKUP(M$3,Materials!$B$4:$AH$53,13,FALSE),0) -> 1.25893435 | N35: =_xlfn.IFNA(VLOOKUP(N$3,Materials!$B$4:$AH$53,13,FALSE),0) -> 0.3627419862
B36: SiO2 | C36: =_xlfn.IFNA(VLOOKUP(C$3,Materials!$B$4:$AH$53,14,FALSE),0) -> 9.223333333 | D36: =_xlfn.IFNA(VLOOKUP(D$3,Materials!$B$4:$AH$53,14,FALSE),0) -> 10.20888889 | E36: =_xlfn.IFNA(VLOOKUP(E$3,Materials!$B$4:$AH$53,14,FALSE),0) -> 3.762336941 | F36: =_xlfn.IFNA(VLOOKUP(F$3,Materials!$B$4:$AH$53,14,FALSE),0) -> 8.394996377 | G36: =_xlfn.IFNA(VLOOKUP(G$3,Materials!$B$4:$AH$53,14,FALSE),0) -> 4.113708333 | H36: =_xlfn.IFNA(VLOOKUP(H$3,Materials!$B$4:$AH$53,14,FALSE),0) -> 3.728958333 | I36: =_xlfn.IFNA(VLOOKUP(I$3,Materials!$B$4:$AH$53,14,FALSE),0) -> 46.04 | J36: =_xlfn.IFNA(VLOOKUP(J$3,Materials!$B$4:$AH$53,14,FALSE),0) -> 46.9 | K36: =_xlfn.IFNA(VLOOKUP(K$3,Materials!$B$4:$AH$53,14,FALSE),0) -> 24.9643091 | L36: =_xlfn.IFNA(VLOOKUP(L$3,Materials!$B$4:$AH$53,14,FALSE),0) -> 41.46908745 | M36: =_xlfn.IFNA(VLOOKUP(M$3,Materials!$B$4:$AH$53,14,FALSE),0) -> 48.32516808 | N36: =_xlfn.IFNA(VLOOKUP(N$3,Materials!$B$4:$AH$53,14,FALSE),0) -> 27.95962466 | Q36: = | R36: PrimLowCa
B37: SO3 | C37: =_xlfn.IFNA(VLOOKUP(C$3,Materials!$B$4:$AH$53,15,FALSE),0) -> 0.237252097 | D37: =_xlfn.IFNA(VLOOKUP(D$3,Materials!$B$4:$AH$53,15,FALSE),0) -> 0.6222940318 | E37: =_xlfn.IFNA(VLOOKUP(E$3,Materials!$B$4:$AH$53,15,FALSE),0) -> 1.338833809 | F37: =_xlfn.IFNA(VLOOKUP(F$3,Materials!$B$4:$AH$53,15,FALSE),0) -> 1.423000495 | G37: =_xlfn.IFNA(VLOOKUP(G$3,Materials!$B$4:$AH$53,15,FALSE),0) -> 1.018024258 | H37: =_xlfn.IFNA(VLOOKUP(H$3,Materials!$B$4:$AH$53,15,FALSE),0) -> 0.478497926 | I37: =_xlfn.IFNA(VLOOKUP(I$3,Materials!$B$4:$AH$53,15,FALSE),0) -> 1.018024258 | J37: =_xlfn.IFNA(VLOOKUP(J$3,Materials!$B$4:$AH$53,15,FALSE),0) -> 0.478497926 | K37: =_xlfn.IFNA(VLOOKUP(K$3,Materials!$B$4:$AH$53,15,FALSE),0) -> 0.3122312679 | L37: =_xlfn.IFNA(VLOOKUP(L$3,Materials!$B$4:$AH$53,15,FALSE),0) -> 0.1352079951 | M37: =_xlfn.IFNA(VLOOKUP(M$3,Materials!$B$4:$AH$53,15,FALSE),0) -> 0.09472146273 | N37: =_xlfn.IFNA(VLOOKUP(N$3,Materials!$B$4:$AH$53,15,FALSE),0) -> 0.1476746402 | Q37: + | R37: SecLowCa | S37: 0 | T37: 30 | U37: % | V37: =SUMIF(R28:R31,R36,V28:V31)+SUMIF(R28:R31,R37,V28:V31) -> 25.18447822 | W37: %
B38: LOI | C38: =_xlfn.IFNA(VLOOKUP(C$3,Materials!$B$4:$AH$53,16,FALSE),0) -> 40.48346761 | D38: =_xlfn.IFNA(VLOOKUP(D$3,Materials!$B$4:$AH$53,16,FALSE),0) -> 39.50834556 | E38: =_xlfn.IFNA(VLOOKUP(E$3,Materials!$B$4:$AH$53,16,FALSE),0) -> 39.25134095 | F38: =_xlfn.IFNA(VLOOKUP(F$3,Materials!$B$4:$AH$53,16,FALSE),0) -> 37.90244864 | G38: =_xlfn.IFNA(VLOOKUP(G$3,Materials!$B$4:$AH$53,16,FALSE),0) -> 39.13857442 | H38: =_xlfn.IFNA(VLOOKUP(H$3,Materials!$B$4:$AH$53,16,FALSE),0) -> 40.73534499 | I38: =_xlfn.IFNA(VLOOKUP(I$3,Materials!$B$4:$AH$53,16,FALSE),0) -> 18.13784525 | J38: =_xlfn.IFNA(VLOOKUP(J$3,Materials!$B$4:$AH$53,16,FALSE),0) -> 8.430511657 | K38: =_xlfn.IFNA(VLOOKUP(K$3,Materials!$B$4:$AH$53,16,FALSE),0) -> 29.07 | L38: =_xlfn.IFNA(VLOOKUP(L$3,Materials!$B$4:$AH$53,16,FALSE),0) -> 20.55 | M38: =_xlfn.IFNA(VLOOKUP(M$3,Materials!$B$4:$AH$53,16,FALSE),0) -> 13.97 | N38: =_xlfn.IFNA(VLOOKUP(N$3,Materials!$B$4:$AH$53,16,FALSE),0) -> 27.46083182
B39: Sum | C39: =SUM(C30:C38) -> 100 | D39: =SUM(D30:D38) -> 100 | E39: 100 | F39: 100 | G39: 100 | H39: 100 | I39: 100 | J39: 100 | K39: 99.67897239 | L39: 99.77552242 | M39: 99.7807564 | N39: 99.47051863 | Q39: Size Distribution | S39: MIN | T39: MAX | V39: RESULT
A40: Mineralogical Composition | R40: d10 | S40: 0 | T40: 100 | U40: um | V40: =IFERROR(SUMPRODUCT(C50:N50,$C$17:$N$17)/100,0) -> 1.429543157 | W40: um
B41: Calcite | C41: =_xlfn.IFNA(VLOOKUP(C$3,Materials!$B$4:$AH$53,17,FALSE),0) -> 34.53143321 | D41: =_xlfn.IFNA(VLOOKUP(D$3,Materials!$B$4:$AH$53,17,FALSE),0) -> 28.66 | E41: =_xlfn.IFNA(VLOOKUP(E$3,Materials!$B$4:$AH$53,17,FALSE),0) -> 27.13907437 | F41: =_xlfn.IFNA(VLOOKUP(F$3,Materials!$B$4:$AH$53,17,FALSE),0) -> 37.53049457 | G41: =_xlfn.IFNA(VLOOKUP(G$3,Materials!$B$4:$AH$53,17,FALSE),0) -> 48.86 | H41: =_xlfn.IFNA(VLOOKUP(H$3,Materials!$B$4:$AH$53,17,FALSE),0) -> 42.88250788 | I41: =_xlfn.IFNA(VLOOKUP(I$3,Materials!$B$4:$AH$53,17,FALSE),0) -> 37.53049457 | J41: =_xlfn.IFNA(VLOOKUP(J$3,Materials!$B$4:$AH$53,17,FALSE),0) -> 48.86 | K41: =_xlfn.IFNA(VLOOKUP(K$3,Materials!$B$4:$AH$53,17,FALSE),0) -> 50.78921147 | L41: =_xlfn.IFNA(VLOOKUP(L$3,Materials!$B$4:$AH$53,17,FALSE),0) -> 33.33295542 | M41: =_xlfn.IFNA(VLOOKUP(M$3,Materials!$B$4:$AH$53,17,FALSE),0) -> 22.15215536 | N41: =_xlfn.IFNA(VLOOKUP(N$3,Materials!$B$4:$AH$53,17,FALSE),0) -> 53.71 | R41: d20 | S41: 0 | T41: 100 | U41: um | V41: =IFERROR(SUMPRODUCT(C51:N51,$C$17:$N$17)/100,0) -> 2.889526034 | W41: um
B42: Dolomite | C42: =_xlfn.IFNA(VLOOKUP(C$3,Materials!$B$4:$AH$53,18,FALSE),0) -> 3.065527194 | D42: =_xlfn.IFNA(VLOOKUP(D$3,Materials!$B$4:$AH$53,18,FALSE),0) -> 2.985 | E42: =_xlfn.IFNA(VLOOKUP(E$3,Materials!$B$4:$AH$53,18,FALSE),0) -> 2.570803592 | F42: =_xlfn.IFNA(VLOOKUP(F$3,Materials!$B$4:$AH$53,18,FALSE),0) -> 1.994899091 | G42: =_xlfn.IFNA(VLOOKUP(G$3,Materials!$B$4:$AH$53,18,FALSE),0) -> 9.305 | H42: =_xlfn.IFNA(VLOOKUP(H$3,Materials!$B$4:$AH$53,18,FALSE),0) -> 9.321057335 | I42: =_xlfn.IFNA(VLOOKUP(I$3,Materials!$B$4:$AH$53,18,FALSE),0) -> 1.994899091 | J42: =_xlfn.IFNA(VLOOKUP(J$3,Materials!$B$4:$AH$53,18,FALSE),0) -> 9.305 | K42: =_xlfn.IFNA(VLOOKUP(K$3,Materials!$B$4:$AH$53,18,FALSE),0) -> 5.188187871 | L42: =_xlfn.IFNA(VLOOKUP(L$3,Materials!$B$4:$AH$53,18,FALSE),0) -> 5.262799873 | M42: =_xlfn.IFNA(VLOOKUP(M$3,Materials!$B$4:$AH$53,18,FALSE),0) -> 0.3595817328 | N42: =_xlfn.IFNA(VLOOKUP(N$3,Materials!$B$4:$AH$53,18,FALSE),0) -> 5.66 | R42: d50 | S42: 0 | T42: 100 | U42: um | V42: =IFERROR(SUMPRODUCT(C52:N52,$C$17:$N$17)/100,0) -> 9.693145753 | W42: um
B43: Quartz | C43: =_xlfn.IFNA(VLOOKUP(C$3,Materials!$B$4:$AH$53,19,FALSE),0) -> 22.33809867 | D43: =_xlfn.IFNA(VLOOKUP(D$3,Materials!$B$4:$AH$53,19,FALSE),0) -> 29.175 | E43: =_xlfn.IFNA(VLOOKUP(E$3,Materials!$B$4:$AH$53,19,FALSE),0) -> 24.69145752 | F43: =_xlfn.IFNA(VLOOKUP(F$3,Materials!$B$4:$AH$53,19,FALSE),0) -> 23.98758039 | G43: =_xlfn.IFNA(VLOOKUP(G$3,Materials!$B$4:$AH$53,19,FALSE),0) -> 23.495 | H43: =_xlfn.IFNA(VLOOKUP(H$3,Materials!$B$4:$AH$53,19,FALSE),0) -> 22.37547622 | I43: =_xlfn.IFNA(VLOOKUP(I$3,Materials!$B$4:$AH$53,19,FALSE),0) -> 23.98758039 | J43: =_xlfn.IFNA(VLOOKUP(J$3,Materials!$B$4:$AH$53,19,FALSE),0) -> 23.495 | K43: =_xlfn.IFNA(VLOOKUP(K$3,Materials!$B$4:$AH$53,19,FALSE),0) -> 15.52606549 | L43: =_xlfn.IFNA(VLOOKUP(L$3,Materials!$B$4:$AH$53,19,FALSE),0) -> 27.8445422 | M43: =_xlfn.IFNA(VLOOKUP(M$3,Materials!$B$4:$AH$53,19,FALSE),0) -> 23.16794708 | N43: =_xlfn.IFNA(VLOOKUP(N$3,Materials!$B$4:$AH$53,19,FALSE),0) -> 18.78 | R43: d80 | S43: 0 | T43: 100 | U43: um | V43: =IFERROR(SUMPRODUCT(C53:N53,$C$17:$N$17)/100,0) -> 27.85799312 | W43: um
B44: Fspars | C44: =_xlfn.IFNA(VLOOKUP(C$3,Materials!$B$4:$AH$53,20,FALSE),0) -> 7.799675295 | D44: =_xlfn.IFNA(VLOOKUP(D$3,Materials!$B$4:$AH$53,20,FALSE),0) -> 11.945 | E44: =_xlfn.IFNA(VLOOKUP(E$3,Materials!$B$4:$AH$53,20,FALSE),0) -> 10.92677872 | F44: =_xlfn.IFNA(VLOOKUP(F$3,Materials!$B$4:$AH$53,20,FALSE),0) -> 5.421379463 | G44: =_xlfn.IFNA(VLOOKUP(G$3,Materials!$B$4:$AH$53,20,FALSE),0) -> 4.155 | H44: =_xlfn.IFNA(VLOOKUP(H$3,Materials!$B$4:$AH$53,20,FALSE),0) -> 4.062602888 | I44: =_xlfn.IFNA(VLOOKUP(I$3,Materials!$B$4:$AH$53,20,FALSE),0) -> 5.421379463 | J44: =_xlfn.IFNA(VLOOKUP(J$3,Materials!$B$4:$AH$53,20,FALSE),0) -> 4.155 | K44: =_xlfn.IFNA(VLOOKUP(K$3,Materials!$B$4:$AH$53,20,FALSE),0) -> 7.321436659 | L44: =_xlfn.IFNA(VLOOKUP(L$3,Materials!$B$4:$AH$53,20,FALSE),0) -> 8.009840824 | M44: =_xlfn.IFNA(VLOOKUP(M$3,Materials!$B$4:$AH$53,20,FALSE),0) -> 11.58023901 | N44: =_xlfn.IFNA(VLOOKUP(N$3,Materials!$B$4:$AH$53,20,FALSE),0) -> 7.41 | R44: d90 | S44: 0 | T44: 100 | U44: um | V44: =IFERROR(SUMPRODUCT(C54:N54,$C$17:$N$17)/100,0) -> 42.56571539 | W44: um
B45: Illite | C45: =_xlfn.IFNA(VLOOKUP(C$3,Materials!$B$4:$AH$53,21,FALSE),0) -> 23.90751464 | D45: =_xlfn.IFNA(VLOOKUP(D$3,Materials!$B$4:$AH$53,21,FALSE),0) -> 15.64158879 | E45: =_xlfn.IFNA(VLOOKUP(E$3,Materials!$B$4:$AH$53,21,FALSE),0) -> 21.05409026 | F45: =_xlfn.IFNA(VLOOKUP(F$3,Materials!$B$4:$AH$53,21,FALSE),0) -> 22.63195367 | G45: =_xlfn.IFNA(VLOOKUP(G$3,Materials!$B$4:$AH$53,21,FALSE),0) -> 10.16149871 | H45: =_xlfn.IFNA(VLOOKUP(H$3,Materials!$B$4:$AH$53,21,FALSE),0) -> 15.72633491 | I45: =_xlfn.IFNA(VLOOKUP(I$3,Materials!$B$4:$AH$53,21,FALSE),0) -> 22.63195367 | J45: =_xlfn.IFNA(VLOOKUP(J$3,Materials!$B$4:$AH$53,21,FALSE),0) -> 10.16149871 | K45: =_xlfn.IFNA(VLOOKUP(K$3,Materials!$B$4:$AH$53,21,FALSE),0) -> 12.2831543 | L45: =_xlfn.IFNA(VLOOKUP(L$3,Materials!$B$4:$AH$53,21,FALSE),0) -> 16.17394561 | M45: =_xlfn.IFNA(VLOOKUP(M$3,Materials!$B$4:$AH$53,21,FALSE),0) -> 31.86104074 | N45: =_xlfn.IFNA(VLOOKUP(N$3,Materials!$B$4:$AH$53,21,FALSE),0) -> 8.357375271
B46: Chlorite | C46: =_xlfn.IFNA(VLOOKUP(C$3,Materials!$B$4:$AH$53,22,FALSE),0) -> 4.321581239 | D46: =_xlfn.IFNA(VLOOKUP(D$3,Materials!$B$4:$AH$53,22,FALSE),0) -> 5.884796232 | E46: =_xlfn.IFNA(VLOOKUP(E$3,Materials!$B$4:$AH$53,22,FALSE),0) -> 6.636328879 | F46: =_xlfn.IFNA(VLOOKUP(F$3,Materials!$B$4:$AH$53,22,FALSE),0) -> 6.786265278 | G46: =_xlfn.IFNA(VLOOKUP(G$3,Materials!$B$4:$AH$53,22,FALSE),0) -> 2.417469753 | H46: =_xlfn.IFNA(VLOOKUP(H$3,Materials!$B$4:$AH$53,22,FALSE),0) -> 3.550179327 | I46: =_xlfn.IFNA(VLOOKUP(I$3,Materials!$B$4:$AH$53,22,FALSE),0) -> 6.786265278 | J46: =_xlfn.IFNA(VLOOKUP(J$3,Materials!$B$4:$AH$53,22,FALSE),0) -> 2.417469753 | K46: =_xlfn.IFNA(VLOOKUP(K$3,Materials!$B$4:$AH$53,22,FALSE),0) -> 4.955106495 | L46: =_xlfn.IFNA(VLOOKUP(L$3,Materials!$B$4:$AH$53,22,FALSE),0) -> 5.217725355 | M46: =_xlfn.IFNA(VLOOKUP(M$3,Materials!$B$4:$AH$53,22,FALSE),0) -> 3.07820812 | N46: =_xlfn.IFNA(VLOOKUP(N$3,Materials!$B$4:$AH$53,22,FALSE),0) -> 3.336374828 | Q46: Klinker Composition | S46: MIN | T46: MAX | V46: RESULT
B47: Smectites | C47: =_xlfn.IFNA(VLOOKUP(C$3,Materials!$B$4:$AH$53,23,FALSE),0) -> 3.358907016 | D47: =_xlfn.IFNA(VLOOKUP(D$3,Materials!$B$4:$AH$53,23,FALSE),0) -> 4.46105919 | E47: =_xlfn.IFNA(VLOOKUP(E$3,Materials!$B$4:$AH$53,23,FALSE),0) -> 6.078269302 | F47: =_xlfn.IFNA(VLOOKUP(F$3,Materials!$B$4:$AH$53,23,FALSE),0) -> 1.297491202 | G47: =_xlfn.IFNA(VLOOKUP(G$3,Materials!$B$4:$AH$53,23,FALSE),0) -> 0.5921619294 | H47: =_xlfn.IFNA(VLOOKUP(H$3,Materials!$B$4:$AH$53,23,FALSE),0) -> 0.8664647333 | I47: =_xlfn.IFNA(VLOOKUP(I$3,Materials!$B$4:$AH$53,23,FALSE),0) -> 1.297491202 | J47: =_xlfn.IFNA(VLOOKUP(J$3,Materials!$B$4:$AH$53,23,FALSE),0) -> 0.5921619294 | K47: =_xlfn.IFNA(VLOOKUP(K$3,Materials!$B$4:$AH$53,23,FALSE),0) -> 2.636535645 | L47: =_xlfn.IFNA(VLOOKUP(L$3,Materials!$B$4:$AH$53,23,FALSE),0) -> 2.618446985 | M47: =_xlfn.IFNA(VLOOKUP(M$3,Materials!$B$4:$AH$53,23,FALSE),0) -> 6.896329165 | N47: =_xlfn.IFNA(VLOOKUP(N$3,Materials!$B$4:$AH$53,23,FALSE),0) -> 1.418221258 | R47: LSF | S47: 98 | T47: 102 | V47: =IFERROR((100*V7)/(2.8*V12+1.2*V6+0.65*V8),0) -> 98.80571419
B48: Kaolinite | C48: =_xlfn.IFNA(VLOOKUP(C$3,Materials!$B$4:$AH$53,24,FALSE),0) -> 0.6772627315 | D48: =_xlfn.IFNA(VLOOKUP(D$3,Materials!$B$4:$AH$53,24,FALSE),0) -> 0.8625557929 | E48: =_xlfn.IFNA(VLOOKUP(E$3,Materials!$B$4:$AH$53,24,FALSE),0) -> 0.9033115534 | F48: =_xlfn.IFNA(VLOOKUP(F$3,Materials!$B$4:$AH$53,24,FALSE),0) -> 0.3499363311 | G48: =_xlfn.IFNA(VLOOKUP(G$3,Materials!$B$4:$AH$53,24,FALSE),0) -> 0.5788696101 | H48: =_xlfn.IFNA(VLOOKUP(H$3,Materials!$B$4:$AH$53,24,FALSE),0) -> 1.215376706 | I48: =_xlfn.IFNA(VLOOKUP(I$3,Materials!$B$4:$AH$53,24,FALSE),0) -> 0.3499363311 | J48: =_xlfn.IFNA(VLOOKUP(J$3,Materials!$B$4:$AH$53,24,FALSE),0) -> 0.5788696101 | K48: =_xlfn.IFNA(VLOOKUP(K$3,Materials!$B$4:$AH$53,24,FALSE),0) -> 1.300203564 | L48: =_xlfn.IFNA(VLOOKUP(L$3,Materials!$B$4:$AH$53,24,FALSE),0) -> 1.539882055 | M48: =_xlfn.IFNA(VLOOKUP(M$3,Materials!$B$4:$AH$53,24,FALSE),0) -> 0.9044219733 | N48: =_xlfn.IFNA(VLOOKUP(N$3,Materials!$B$4:$AH$53,24,FALSE),0) -> 0.898028643 | R48: SR | S48: 2.4 | T48: 2.8 | V48: =IFERROR(V12/(V6+V8),0) -> 2.737435324
A49: Size Distribution | R49: AR | S49: 1.7 | T49: 2.1 | V49: =IFERROR(V6/V8,0) -> 1.839215551
B50: d10 | C50: =_xlfn.IFNA(VLOOKUP(C$3,Materials!$B$4:$AH$53,25,FALSE),0) -> 1.157 | D50: =_xlfn.IFNA(VLOOKUP(D$3,Materials!$B$4:$AH$53,25,FALSE),0) -> 1.163 | E50: =_xlfn.IFNA(VLOOKUP(E$3,Materials!$B$4:$AH$53,25,FALSE),0) -> 1.407 | F50: =_xlfn.IFNA(VLOOKUP(F$3,Materials!$B$4:$AH$53,25,FALSE),0) -> 1.639 | G50: =_xlfn.IFNA(VLOOKUP(G$3,Materials!$B$4:$AH$53,25,FALSE),0) -> 1.283 | H50: =_xlfn.IFNA(VLOOKUP(H$3,Materials!$B$4:$AH$53,25,FALSE),0) -> 1.464 | I50: =_xlfn.IFNA(VLOOKUP(I$3,Materials!$B$4:$AH$53,25,FALSE),0) -> 1.639 | J50: =_xlfn.IFNA(VLOOKUP(J$3,Materials!$B$4:$AH$53,25,FALSE),0) -> 1.283 | K50: =_xlfn.IFNA(VLOOKUP(K$3,Materials!$B$4:$AH$53,25,FALSE),0) -> 1.077 | L50: =_xlfn.IFNA(VLOOKUP(L$3,Materials!$B$4:$AH$53,25,FALSE),0) -> 1.303 | M50: =_xlfn.IFNA(VLOOKUP(M$3,Materials!$B$4:$AH$53,25,FALSE),0) -> 1.615 | N50: =_xlfn.IFNA(VLOOKUP(N$3,Materials!$B$4:$AH$53,25,FALSE),0) -> 1.157 | R50: Na_eq | S50: 0.1 | T50: 5 | V50: =IFERROR(SUMPRODUCT(C59:N59,$C$17:$N$17)/100,0) -> 2.291041765
B51: d20 | C51: =_xlfn.IFNA(VLOOKUP(C$3,Materials!$B$4:$AH$53,26,FALSE),0) -> 2.179 | D51: =_xlfn.IFNA(VLOOKUP(D$3,Materials!$B$4:$AH$53,26,FALSE),0) -> 2.203 | E51: =_xlfn.IFNA(VLOOKUP(E$3,Materials!$B$4:$AH$53,26,FALSE),0) -> 3.024 | F51: =_xlfn.IFNA(VLOOKUP(F$3,Materials!$B$4:$AH$53,26,FALSE),0) -> 3.185 | G51: =_xlfn.IFNA(VLOOKUP(G$3,Materials!$B$4:$AH$53,26,FALSE),0) -> 2.485 | H51: =_xlfn.IFNA(VLOOKUP(H$3,Materials!$B$4:$AH$53,26,FALSE),0) -> 2.712 | I51: =_xlfn.IFNA(VLOOKUP(I$3,Materials!$B$4:$AH$53,26,FALSE),0) -> 3.185 | J51: =_xlfn.IFNA(VLOOKUP(J$3,Materials!$B$4:$AH$53,26,FALSE),0) -> 2.485 | K51: =_xlfn.IFNA(VLOOKUP(K$3,Materials!$B$4:$AH$53,26,FALSE),0) -> 2.086 | L51: =_xlfn.IFNA(VLOOKUP(L$3,Materials!$B$4:$AH$53,26,FALSE),0) -> 2.697 | M51: =_xlfn.IFNA(VLOOKUP(M$3,Materials!$B$4:$AH$53,26,FALSE),0) -> 2.997 | N51: =_xlfn.IFNA(VLOOKUP(N$3,Materials!$B$4:$AH$53,26,FALSE),0) -> 2.273
B52: d50 | C52: =_xlfn.IFNA(VLOOKUP(C$3,Materials!$B$4:$AH$53,27,FALSE),0) -> 7.958 | D52: =_xlfn.IFNA(VLOOKUP(D$3,Materials!$B$4:$AH$53,27,FALSE),0) -> 7.519 | E52: =_xlfn.IFNA(VLOOKUP(E$3,Materials!$B$4:$AH$53,27,FALSE),0) -> 10.29 | F52: =_xlfn.IFNA(VLOOKUP(F$3,Materials!$B$4:$AH$53,27,FALSE),0) -> 10.138 | G52: =_xlfn.IFNA(VLOOKUP(G$3,Materials!$B$4:$AH$53,27,FALSE),0) -> 7.51 | H52: =_xlfn.IFNA(VLOOKUP(H$3,Materials!$B$4:$AH$53,27,FALSE),0) -> 8.264 | I52: =_xlfn.IFNA(VLOOKUP(I$3,Materials!$B$4:$AH$53,27,FALSE),0) -> 10.138 | J52: =_xlfn.IFNA(VLOOKUP(J$3,Materials!$B$4:$AH$53,27,FALSE),0) -> 7.51 | K52: =_xlfn.IFNA(VLOOKUP(K$3,Materials!$B$4:$AH$53,27,FALSE),0) -> 8.971 | L52: =_xlfn.IFNA(VLOOKUP(L$3,Materials!$B$4:$AH$53,27,FALSE),0) -> 13.067 | M52: =_xlfn.IFNA(VLOOKUP(M$3,Materials!$B$4:$AH$53,27,FALSE),0) -> 7.832 | N52: =_xlfn.IFNA(VLOOKUP(N$3,Materials!$B$4:$AH$53,27,FALSE),0) -> 8.702 | Q52: Costs | V52: RESULT
B53: d80 | C53: =_xlfn.IFNA(VLOOKUP(C$3,Materials!$B$4:$AH$53,28,FALSE),0) -> 27.535 | D53: =_xlfn.IFNA(VLOOKUP(D$3,Materials!$B$4:$AH$53,28,FALSE),0) -> 23.002 | E53: =_xlfn.IFNA(VLOOKUP(E$3,Materials!$B$4:$AH$53,28,FALSE),0) -> 26.619 | F53: =_xlfn.IFNA(VLOOKUP(F$3,Materials!$B$4:$AH$53,28,FALSE),0) -> 29.743 | G53: =_xlfn.IFNA(VLOOKUP(G$3,Materials!$B$4:$AH$53,28,FALSE),0) -> 24.65 | H53: =_xlfn.IFNA(VLOOKUP(H$3,Materials!$B$4:$AH$53,28,FALSE),0) -> 24.249 | I53: =_xlfn.IFNA(VLOOKUP(I$3,Materials!$B$4:$AH$53,28,FALSE),0) -> 29.743 | J53: =_xlfn.IFNA(VLOOKUP(J$3,Materials!$B$4:$AH$53,28,FALSE),0) -> 24.65 | K53: =_xlfn.IFNA(VLOOKUP(K$3,Materials!$B$4:$AH$53,28,FALSE),0) -> 37.7 | L53: =_xlfn.IFNA(VLOOKUP(L$3,Materials!$B$4:$AH$53,28,FALSE),0) -> 45.17 | M53: =_xlfn.IFNA(VLOOKUP(M$3,Materials!$B$4:$AH$53,28,FALSE),0) -> 19.591 | N53: =_xlfn.IFNA(VLOOKUP(N$3,Materials!$B$4:$AH$53,28,FALSE),0) -> 25.249 | R53: Transport | V53: =IFERROR(SUMPRODUCT(C26:N26,C17:N17)/100,0) -> 0.9194197318 | W53: CHF/t
B54: d90 | C54: =_xlfn.IFNA(VLOOKUP(C$3,Materials!$B$4:$AH$53,29,FALSE),0) -> 42.628 | D54: =_xlfn.IFNA(VLOOKUP(D$3,Materials!$B$4:$AH$53,29,FALSE),0) -> 34.874 | E54: =_xlfn.IFNA(VLOOKUP(E$3,Materials!$B$4:$AH$53,29,FALSE),0) -> 39.705 | F54: =_xlfn.IFNA(VLOOKUP(F$3,Materials!$B$4:$AH$53,29,FALSE),0) -> 44.734 | G54: =_xlfn.IFNA(VLOOKUP(G$3,Materials!$B$4:$AH$53,29,FALSE),0) -> 44.186 | H54: =_xlfn.IFNA(VLOOKUP(H$3,Materials!$B$4:$AH$53,29,FALSE),0) -> 37.713 | I54: =_xlfn.IFNA(VLOOKUP(I$3,Materials!$B$4:$AH$53,29,FALSE),0) -> 44.734 | J54: =_xlfn.IFNA(VLOOKUP(J$3,Materials!$B$4:$AH$53,29,FALSE),0) -> 44.186 | K54: =_xlfn.IFNA(VLOOKUP(K$3,Materials!$B$4:$AH$53,29,FALSE),0) -> 60.242 | L54: =_xlfn.IFNA(VLOOKUP(L$3,Materials!$B$4:$AH$53,29,FALSE),0) -> 66.618 | M54: =_xlfn.IFNA(VLOOKUP(M$3,Materials!$B$4:$AH$53,29,FALSE),0) -> 32.105 | N54: =_xlfn.IFNA(VLOOKUP(N$3,Materials!$B$4:$AH$53,29,FALSE),0) -> 37.128 | R54: Material | V54: =IFERROR(SUMPRODUCT(C27:N27,C17:N17)/100,0) -> 6.811293619 | W54: CHF/t
A55: Klinker Composition | R55: Total | V55: =IFERROR(SUMPRODUCT(C28:N28,C17:N17)/100,0) -> 7.730713351 | W55: CHF/t
B56: LSF | C56: =_xlfn.IFNA(VLOOKUP(C$3,Materials!$B$4:$AH$53,30,FALSE),0) -> 152.553986 | D56: =_xlfn.IFNA(VLOOKUP(D$3,Materials!$B$4:$AH$53,30,FALSE),0) -> 135.0134043 | E56: =_xlfn.IFNA(VLOOKUP(E$3,Materials!$B$4:$AH$53,30,FALSE),0) -> 416.1847715 | F56: =_xlfn.IFNA(VLOOKUP(F$3,Materials!$B$4:$AH$53,30,FALSE),0) -> 153.3401252 | G56: =_xlfn.IFNA(VLOOKUP(G$3,Materials!$B$4:$AH$53,30,FALSE),0) -> 316.7270048 | H56: =_xlfn.IFNA(VLOOKUP(H$3,Materials!$B$4:$AH$53,30,FALSE),0) -> 370.1153395 | I56: =_xlfn.IFNA(VLOOKUP(I$3,Materials!$B$4:$AH$53,30,FALSE),0) -> 12.40404154 | J56: =_xlfn.IFNA(VLOOKUP(J$3,Materials!$B$4:$AH$53,30,FALSE),0) -> 10.34945883 | K56: =_xlfn.IFNA(VLOOKUP(K$3,Materials!$B$4:$AH$53,30,FALSE),0) -> 43.28497466 | L56: =_xlfn.IFNA(VLOOKUP(L$3,Materials!$B$4:$AH$53,30,FALSE),0) -> 17.40350701 | M56: =_xlfn.IFNA(VLOOKUP(M$3,Materials!$B$4:$AH$53,30,FALSE),0) -> 9.23943725 | N56: =_xlfn.IFNA(VLOOKUP(N$3,Materials!$B$4:$AH$53,30,FALSE),0) -> 36.4706112 | R56: ="Total for "&FIXED(V3,1,TRUE)&" tons" -> Total for 1198,2 tons | V56: =V55*V3 -> 9262.940737 | W56: CHF
B57: SR | C57: =_xlfn.IFNA(VLOOKUP(C$3,Materials!$B$4:$AH$53,31,FALSE),0) -> 2.605461394 | D57: =_xlfn.IFNA(VLOOKUP(D$3,Materials!$B$4:$AH$53,31,FALSE),0) -> 2.931716656 | E57: =_xlfn.IFNA(VLOOKUP(E$3,Materials!$B$4:$AH$53,31,FALSE),0) -> 2.411245225 | F57: =_xlfn.IFNA(VLOOKUP(F$3,Materials!$B$4:$AH$53,31,FALSE),0) -> 2.724920529 | G57: =_xlfn.IFNA(VLOOKUP(G$3,Materials!$B$4:$AH$53,31,FALSE),0) -> 2.812471513 | H57: =_xlfn.IFNA(VLOOKUP(H$3,Materials!$B$4:$AH$53,31,FALSE),0) -> 2.70492051 | I57: =_xlfn.IFNA(VLOOKUP(I$3,Materials!$B$4:$AH$53,31,FALSE),0) -> 3.767594108 | J57: =_xlfn.IFNA(VLOOKUP(J$3,Materials!$B$4:$AH$53,31,FALSE),0) -> 2.10881295 | K57: =_xlfn.IFNA(VLOOKUP(K$3,Materials!$B$4:$AH$53,31,FALSE),0) -> 3.315739868 | L57: =_xlfn.IFNA(VLOOKUP(L$3,Materials!$B$4:$AH$53,31,FALSE),0) -> 3.911477869 | M57: =_xlfn.IFNA(VLOOKUP(M$3,Materials!$B$4:$AH$53,31,FALSE),0) -> 2.696780394 | N57: =_xlfn.IFNA(VLOOKUP(N$3,Materials!$B$4:$AH$53,31,FALSE),0) -> 3.319305154
B58: AR | C58: =_xlfn.IFNA(VLOOKUP(C$3,Materials!$B$4:$AH$53,32,FALSE),0) -> 1.203319502 | D58: =_xlfn.IFNA(VLOOKUP(D$3,Materials!$B$4:$AH$53,32,FALSE),0) -> 1.309506264 | E58: =_xlfn.IFNA(VLOOKUP(E$3,Materials!$B$4:$AH$53,32,FALSE),0) -> 1.520815457 | F58: =_xlfn.IFNA(VLOOKUP(F$3,Materials!$B$4:$AH$53,32,FALSE),0) -> 2.335806169 | G58: =_xlfn.IFNA(VLOOKUP(G$3,Materials!$B$4:$AH$53,32,FALSE),0) -> 2.258516662 | H58: =_xlfn.IFNA(VLOOKUP(H$3,Materials!$B$4:$AH$53,32,FALSE),0) -> 2.222557709 | I58: =_xlfn.IFNA(VLOOKUP(I$3,Materials!$B$4:$AH$53,32,FALSE),0) -> 2.636904762 | J58: =_xlfn.IFNA(VLOOKUP(J$3,Materials!$B$4:$AH$53,32,FALSE),0) -> 1 | K58: =_xlfn.IFNA(VLOOKUP(K$3,Materials!$B$4:$AH$53,32,FALSE),0) -> 2.048850575 | L58: =_xlfn.IFNA(VLOOKUP(L$3,Materials!$B$4:$AH$53,32,FALSE),0) -> 2.1 | M58: =_xlfn.IFNA(VLOOKUP(M$3,Materials!$B$4:$AH$53,32,FALSE),0) -> 2.575601375 | N58: =_xlfn.IFNA(VLOOKUP(N$3,Materials!$B$4:$AH$53,32,FALSE),0) -> 2.411522336
B59: Na_eq | C59: =_xlfn.IFNA(VLOOKUP(C$3,Materials!$B$4:$AH$53,33,FALSE),0) -> 0.8856199851 | D59: =_xlfn.IFNA(VLOOKUP(D$3,Materials!$B$4:$AH$53,33,FALSE),0) -> 1.383643707 | E59: =_xlfn.IFNA(VLOOKUP(E$3,Materials!$B$4:$AH$53,33,FALSE),0) -> 2.501054469 | F59: =_xlfn.IFNA(VLOOKUP(F$3,Materials!$B$4:$AH$53,33,FALSE),0) -> 2.596159428 | G59: =_xlfn.IFNA(VLOOKUP(G$3,Materials!$B$4:$AH$53,33,FALSE),0) -> 2.074842158 | H59: =_xlfn.IFNA(VLOOKUP(H$3,Materials!$B$4:$AH$53,33,FALSE),0) -> 1.618477985 | I59: =_xlfn.IFNA(VLOOKUP(I$3,Materials!$B$4:$AH$53,33,FALSE),0) -> 2.074842158 | J59: =_xlfn.IFNA(VLOOKUP(J$3,Materials!$B$4:$AH$53,33,FALSE),0) -> 1.618477985 | K59: =_xlfn.IFNA(VLOOKUP(K$3,Materials!$B$4:$AH$53,33,FALSE),0) -> 1.675063983 | L59: =_xlfn.IFNA(VLOOKUP(L$3,Materials!$B$4:$AH$53,33,FALSE),0) -> 1.967689907 | M59: =_xlfn.IFNA(VLOOKUP(M$3,Materials!$B$4:$AH$53,33,FALSE),0) -> 2.766107821 | N59: =_xlfn.IFNA(VLOOKUP(N$3,Materials!$B$4:$AH$53,33,FALSE),0) -> 1.158356076
A61: ButtonHelpers
B62: MINposs | C62: 0 | D62: 0 | E62: 0 | F62: 0 | G62: 0 | H62: 0 | I62: 0 | J62: 0 | K62: 0 | L62: 0 | M62: 0 | N62: 0
B63: MAXposs | C63: =IF((C24*100/$C$68)<100,(C24*100/$C$68),100) -> 100 | D63: 100 | E63: 100 | F63: 100 | G63: 100 | H63: 100 | I63: 100 | J63: =IF((J24*100/$C$68)<100,(J24*100/$C$68),100) -> 100 | K63: =IF((K24*100/$C$68)<100,(K24*100/$C$68),100) -> 8.333333333 | L63: =IF((L24*100/$C$68)<100,(L24*100/$C$68),100) -> 4.166666667 | M63: 6.666666667 | N63: 3.333333333
B64: MAXpos10 | C64: =ROUND(C63*10,0) -> 1000 | D64: =ROUND(D63*10,0) -> 1000 | E64: =ROUND(E63*10,0) -> 1000 | F64: =ROUND(F63*10,0) -> 1000 | G64: =ROUND(G63*10,0) -> 1000 | H64: =ROUND(H63*10,0) -> 1000 | I64: =ROUND(I63*10,0) -> 1000 | J64: =ROUND(J63*10,0) -> 1000 | K64: =ROUND(K63*10,0) -> 83 | L64: =ROUND(L63*10,0) -> 42 | M64: =ROUND(M63*10,0) -> 67 | N64: =ROUND(N63*10,0) -> 33
B65: ButtVMin | C65: 0 | D65: 0 | E65: 0 | F65: 0 | G65: 0 | H65: 0 | I65: 0 | J65: 0 | K65: 0 | L65: 0 | M65: 0 | N65: 0
B66: ButtVMax | C66: 1000 | D66: 1000 | E66: 1000 | F66: 1000 | G66: 1000 | H66: 1000 | I66: 1000 | J66: 1000 | K66: 83 | L66: 42 | M66: 67 | N66: 33
A68: TargetTons | C68: =S3 -> 1200 | D68: t
B69: TTvar | C69: =S4 -> 0.15 | D69: %
B70: TTmin | C70: =C68-(C69/100*C68) -> 1198.2 | D70: t
B71: TTmax | C71: =C68+(C69/100*C68) -> 1201.8 | D71: t
A73: AmountSum | C73: =SUM(C17:N17) -> 99.85
B74: ASmin | C74: =C70*100/C68 -> 99.85
B75: ASmax | C75: =C71*100/C68 -> 100.15

Sheet Rawmix Modifier
A1: Manually Optimize Proposed Rawmix | Q1: Rawmix Requirements and Optimized Result
A3: Material | C3: RAW1 | D3: RAW2 | E3: RAW3 | F3: RAW4 | G3: RAW5 | H3: RAW6 | I3: RAW7 | J3: RAW8 | K3: KWS01 | L3: KWS02 | M3: KWS04 | N3: KWS05 | Q3: Amount | S3: ='Rawmix Optimizer'!S3 -> 1200 | T3: t/d | V3: =SUM(C18:N18) -> 1198.2 | W3: t/d
C4: =IF((_xlfn.IFNA(VLOOKUP(C$3,Materials!$B$4:$AH$53,2,FALSE),0))=0,"None",(_xlfn.IFNA(VLOOKUP(C$3,Materials!$B$4:$AH$53,2,FALSE),0))) -> PrimHighCa | D4: =IF((_xlfn.IFNA(VLOOKUP(D$3,Materials!$B$4:$AH$53,2,FALSE),0))=0,"None",(_xlfn.IFNA(VLOOKUP(D$3,Materials!$B$4:$AH$53,2,FALSE),0))) -> PrimHighCa | E4: =IF((_xlfn.IFNA(VLOOKUP(E$3,Materials!$B$4:$AH$53,2,FALSE),0))=0,"None",(_xlfn.IFNA(VLOOKUP(E$3,Materials!$B$4:$AH$53,2,FALSE),0))) -> PrimHighCa | F4: =IF((_xlfn.IFNA(VLOOKUP(F$3,Materials!$B$4:$AH$53,2,FALSE),0))=0,"None",(_xlfn.IFNA(VLOOKUP(F$3,Materials!$B$4:$AH$53,2,FALSE),0))) -> PrimHighCa | G4: =IF((_xlfn.IFNA(VLOOKUP(G$3,Materials!$B$4:$AH$53,2,FALSE),0))=0,"None",(_xlfn.IFNA(VLOOKUP(G$3,Materials!$B$4:$AH$53,2,FALSE),0))) -> PrimHighCa | H4: =IF((_xlfn.IFNA(VLOOKUP(H$3,Materials!$B$4:$AH$53,2,FALSE),0))=0,"None",(_xlfn.IFNA(VLOOKUP(H$3,Materials!$B$4:$AH$53,2,FALSE),0))) -> PrimHighCa | I4: =IF((_xlfn.IFNA(VLOOKUP(I$3,Materials!$B$4:$AH$53,2,FALSE),0))=0,"None",(_xlfn.IFNA(VLOOKUP(I$3,Materials!$B$4:$AH$53,2,FALSE),0))) -> PrimLowCa | J4: =IF((_xlfn.IFNA(VLOOKUP(J$3,Materials!$B$4:$AH$53,2,FALSE),0))=0,"None",(_xlfn.IFNA(VLOOKUP(J$3,Materials!$B$4:$AH$53,2,FALSE),0))) -> PrimLowCa | K4: =IF((_xlfn.IFNA(VLOOKUP(K$3,Materials!$B$4:$AH$53,2,FALSE),0))=0,"None",(_xlfn.IFNA(VLOOKUP(K$3,Materials!$B$4:$AH$53,2,FALSE),0))) -> SecLowCa | L4: =IF((_xlfn.IFNA(VLOOKUP(L$3,Materials!$B$4:$AH$53,2,FALSE),0))=0,"None",(_xlfn.IFNA(VLOOKUP(L$3,Materials!$B$4:$AH$53,2,FALSE),0))) -> SecLowCa | M4: =IF((_xlfn.IFNA(VLOOKUP(M$3,Materials!$B$4:$AH$53,2,FALSE),0))=0,"None",(_xlfn.IFNA(VLOOKUP(M$3,Materials!$B$4:$AH$53,2,FALSE),0))) -> SecLowCa | N4: =IF((_xlfn.IFNA(VLOOKUP(N$3,Materials!$B$4:$AH$53,2,FALSE),0))=0,"None",(_xlfn.IFNA(VLOOKUP(N$3,Materials!$B$4:$AH$53,2,FALSE),0))) -> SecLowCa | R4: +/- | S4: ='Rawmix Optimizer'!S4 -> 0.15 | T4: ="% (+/-"&FIXED((C71-C68),1)&" t)" -> % (+/-1,8 t)
Q5: Chemical Composition | S5: MIN | T5: MAX | V5: RESULT
A6: Proposed | R6: Al2O3 | S6: ='Rawmix Optimizer'!S6 -> 3.1 | T6: ='Rawmix Optimizer'!T6 -> 3.5 | U6: % | V6: =IFERROR(SUMPRODUCT(C30:N30,$C$17:$N$17)/100,0) -> 3.1 | W6: %
B7: % | C7: 0 | D7: 0 | E7: 44.39120818 | F7: 21.19335124 | G7: 0 | H7: 9.080962366 | I7: 0 | J7: 4.136044908 | K7: 8.3 | L7: 2.748433309 | M7: 6.7 | N7: 3.3 | R7: CaO | S7: ='Rawmix Optimizer'!S7 -> 41 | T7: ='Rawmix Optimizer'!T7 -> 41.69 | U7: % | V7: 41 | W7: %
B8: t | C8: 0 | D8: 0 | E8: 532.6944982 | F8: 254.3202148 | G8: 0 | H8: 108.9715484 | I8: 0 | J8: 49.6325389 | K8: 99.6 | L8: 32.98119971 | M8: 80.4 | N8: 39.6 | R8: Fe2O3 | S8: ='Rawmix Optimizer'!S8 -> 1.65 | T8: ='Rawmix Optimizer'!T8 -> 1.71 | U8: % | V8: 1.68550119 | W8: %
B9: Available t | C9: =C24 -> 5000 | D9: =D24 -> 5000 | E9: 5000 | F9: 5000 | G9: 5000 | H9: 5000 | I9: 5000 | J9: 5000 | K9: 100 | L9: 50 | M9: 80 | N9: 40 | R9: K2O | S9: ='Rawmix Optimizer'!S9 -> 0.1 | T9: ='Rawmix Optimizer'!T9 -> 4 | U9: % | V9: 1.706045485 | W9: %
R10: MgO | S10: ='Rawmix Optimizer'!S10 -> 0.1 | T10: ='Rawmix Optimizer'!T10 -> 2.8 | U10: % | V10: 2.700407241 | W10: %
R11: Na2O | S11: ='Rawmix Optimizer'!S11 -> 0.1 | T11: ='Rawmix Optimizer'!T11 -> 4 | U11: % | V11: 1.168463836 | W11: %
A12: Modify | R12: SiO2 | S12: ='Rawmix Optimizer'!S12 -> 12.9 | T12: ='Rawmix Optimizer'!T12 -> 13.1 | U12: % | V12: 13.1 | W12: %
B13: Remove/add t | C13: =C65 -> 0 | D13: =D65 -> 0 | E13: 0 | F13: 0 | G13: 0 | H13: 0 | I13: 0 | J13: 0 | K13: 0 | L13: 0 | M13: 0 | N13: 0 | R13: SO3 | S13: ='Rawmix Optimizer'!S13 -> 0.1 | T13: ='Rawmix Optimizer'!T13 -> 1 | U13: % | V13: 1 | W13: %
R14: LOI | S14: ='Rawmix Optimizer'!S14 -> 33 | T14: ='Rawmix Optimizer'!T14 -> 36 | U14: % | V14: 34.32460513 | W14: %
R15: Sum | S15: ='Rawmix Optimizer'!S15 -> 99.5 | T15: ='Rawmix Optimizer'!T15 -> 100.5 | U15: % | V15: =SUM(V6:V14) -> 99.78502289 | W15: %
A16: Final Rawmix
B17: % | C17: =C18*100/$S$3 -> 0 | D17: =D18*100/$S$3 -> 0 | E17: 44.39120818 | F17: 21.19335124 | G17: 0 | H17: 9.080962366 | I17: 0 | J17: 4.136044908 | K17: 8.3 | L17: 2.748433309 | M17: 6.7 | N17: 3.3 | Q17: Mineralogical Composition | S17: MIN | T17: MAX | V17: RESULT
B18: t | C18: =C8+C13 -> 0 | D18: =D8+D13 -> 0 | E18: 532.6944982 | F18: 254.3202148 | G18: 0 | H18: 108.9715484 | I18: 0 | J18: 49.6325389 | K18: 99.6 | L18: 32.98119971 | M18: 80.4 | N18: 39.6 | R18: Calcite | S18: ='Rawmix Optimizer'!S18 -> 0 | T18: ='Rawmix Optimizer'!T18 -> 100 | U18: % | V18: =IFERROR(SUMPRODUCT(C41:N41,$C$17:$N$17)/100,0) -> 34.30461149 | W18: %
R19: Dolomite | S19: ='Rawmix Optimizer'!S19 -> 0 | T19: ='Rawmix Optimizer'!T19 -> 100 | U19: % | V19: 3.581433547 | W19: %
C20: =Materials!B57&" "&FIXED(IF((SUMIF(C4:N4,Materials!B57,'Rawmix Modifier'!C18:N18))>=S3,S3,(SUMIF(C4:N4,Materials!B57,'Rawmix Modifier'!C18:N18))),0)&" of "&FIXED(IF((SUMIF(C4:N4,Materials!B57,'Rawmix Modifier'!C9:N9))>=S3,S3,(SUMIF(C4:N4,Materials!B57,'Rawmix Modifier'!C9:N9))),0)&" t/d used" -> PrimHighCa 896 of 1.200 t/d used | G20: =Materials!B59&" "&FIXED(IF((SUMIF(C4:N4,Materials!B59,'Rawmix Modifier'!C18:N18))>=S3,S3,(SUMIF(C4:N4,Materials!B59,'Rawmix Modifier'!C18:N18))),0)&" of "&FIXED(IF((SUMIF(C4:N4,Materials!B59,'Rawmix Modifier'!C9:N9))>=S3,S3,(SUMIF(C4:N4,Materials!B59,'Rawmix Modifier'!C9:N9))),0)&" t/d used" -> SecHighCa 0 of 0 t/d used | J20: =IF(AND(V3>=C70,V3<=C71),"Target Amount OK",IF(V3<C70,"Add "&ROUND(C70-V3,0)&" t!",IF(V3>C70,"Remove "&ROUNDUP(V3-C71,0)&" t!","OK"))) -> Target Amount OK | M20: Sum | N20: =FIXED(SUM(C17:N17),1)&" %" -> 99,9 % | R20: Quartz | S20: ='Rawmix Optimizer'!S20 -> 0 | T20: ='Rawmix Optimizer'!T20 -> 100 | U20: % | V20: =IFERROR(SUMPRODUCT(C43:N43,$C$17:$N$17)/100,0) -> 23.27422536 | W20: %
C21: =Materials!B58&" "&FIXED(IF((SUMIF(C4:N4,Materials!B58,'Rawmix Modifier'!C18:N18))>=S3,S3,(SUMIF(C4:N4,Materials!B58,'Rawmix Modifier'!C18:N18))),0)&" of "&FIXED(IF((SUMIF(C4:N4,Materials!B58,'Rawmix Modifier'!C9:N9))>=S3,S3,(SUMIF(C4:N4,Materials!B58,'Rawmix Modifier'!C9:N9))),0)&" t/d used" -> PrimLowCa 50 of 1.200 t/d used | G21: =Materials!B60&" "&FIXED(IF((SUMIF(C4:N4,Materials!B60,'Rawmix Modifier'!C18:N18))>=S3,S3,(SUMIF(C4:N4,Materials!B60,'Rawmix Modifier'!C18:N18))),0)&" of "&FIXED(IF((SUMIF(C4:N4,Materials!B60,'Rawmix Modifier'!C9:N9))>=S3,S3,(SUMIF(C4:N4,Materials!B60,'Rawmix Modifier'!C9:N9))),0)&" t/d used" -> SecLowCa 253 of 270 t/d used | M21: = | N21: =FIXED(V3,1)&" t/d" -> 1.198,2 t/d | R21: Fspars | S21: ='Rawmix Optimizer'!S21 -> 0 | T21: ='Rawmix Optimizer'!T21 -> 100 | U21: % | V21: 8.388507577 | W21: %
R22: Illite | S22: ='Rawmix Optimizer'!S22 -> 0 | T22: ='Rawmix Optimizer'!T22 -> 100 | U22: % | V22: 19.86553621 | W22: %
R23: Chlorite | S23: ='Rawmix Optimizer'!S23 -> 0 | T23: ='Rawmix Optimizer'!T23 -> 100 | U23: % | V23: 5.677581542 | W23: %
A24: Amount (t/d) | C24: =_xlfn.IFNA(VLOOKUP(C$3,Materials!$B$4:$AH$53,4,FALSE),0) -> 5000 | D24: =_xlfn.IFNA(VLOOKUP(D$3,Materials!$B$4:$AH$53,4,FALSE),0) -> 5000 | E24: =_xlfn.IFNA(VLOOKUP(E$3,Materials!$B$4:$AH$53,4,FALSE),0) -> 5000 | F24: =_xlfn.IFNA(VLOOKUP(F$3,Materials!$B$4:$AH$53,4,FALSE),0) -> 5000 | G24: =_xlfn.IFNA(VLOOKUP(G$3,Materials!$B$4:$AH$53,4,FALSE),0) -> 5000 | H24: =_xlfn.IFNA(VLOOKUP(H$3,Materials!$B$4:$AH$53,4,FALSE),0) -> 5000 | I24: =_xlfn.IFNA(VLOOKUP(I$3,Materials!$B$4:$AH$53,4,FALSE),0) -> 5000 | J24: =_xlfn.IFNA(VLOOKUP(J$3,Materials!$B$4:$AH$53,4,FALSE),0) -> 5000 | K24: =_xlfn.IFNA(VLOOKUP(K$3,Materials!$B$4:$AH$53,4,FALSE),0) -> 100 | L24: =_xlfn.IFNA(VLOOKUP(L$3,Materials!$B$4:$AH$53,4,FALSE),0) -> 50 | M24: =_xlfn.IFNA(VLOOKUP(M$3,Materials!$B$4:$AH$53,4,FALSE),0) -> 80 | N24: =_xlfn.IFNA(VLOOKUP(N$3,Materials!$B$4:$AH$53,4,FALSE),0) -> 40 | R24: Smectites | S24: ='Rawmix Optimizer'!S24 -> 0 | T24: ='Rawmix Optimizer'!T24 -> 100 | U24: % | V24: 3.87602855 | W24: %
A25: Costs (/t) | R25: Kaolinite | S25: ='Rawmix Optimizer'!S25 -> 0 | T25: ='Rawmix Optimizer'!T25 -> 100 | U25: % | V25: 0.8499351008 | W25: %
B26: Transport | C26: =_xlfn.IFNA(VLOOKUP(C$3,Materials!$B$4:$AH$53,5,FALSE),0) -> 0 | D26: =_xlfn.IFNA(VLOOKUP(D$3,Materials!$B$4:$AH$53,5,FALSE),0) -> 0 | E26: =_xlfn.IFNA(VLOOKUP(E$3,Materials!$B$4:$AH$53,5,FALSE),0) -> 0 | F26: =_xlfn.IFNA(VLOOKUP(F$3,Materials!$B$4:$AH$53,5,FALSE),0) -> 0 | G26: =_xlfn.IFNA(VLOOKUP(G$3,Materials!$B$4:$AH$53,5,FALSE),0) -> 0 | H26: =_xlfn.IFNA(VLOOKUP(H$3,Materials!$B$4:$AH$53,5,FALSE),0) -> 0 | I26: =_xlfn.IFNA(VLOOKUP(I$3,Materials!$B$4:$AH$53,5,FALSE),0) -> 0 | J26: =_xlfn.IFNA(VLOOKUP(J$3,Materials!$B$4:$AH$53,5,FALSE),0) -> 0 | K26: =_xlfn.IFNA(VLOOKUP(K$3,Materials!$B$4:$AH$53,5,FALSE),0) -> 1.12 | L26: =_xlfn.IFNA(VLOOKUP(L$3,Materials!$B$4:$AH$53,5,FALSE),0) -> 6.4 | M26: =_xlfn.IFNA(VLOOKUP(M$3,Materials!$B$4:$AH$53,5,FALSE),0) -> 6.4 | N26: =_xlfn.IFNA(VLOOKUP(N$3,Materials!$B$4:$AH$53,5,FALSE),0) -> 6.72
B27: Material | C27: =_xlfn.IFNA(VLOOKUP(C$3,Materials!$B$4:$AH$53,6,FALSE),0) -> 8.5 | D27: =_xlfn.IFNA(VLOOKUP(D$3,Materials!$B$4:$AH$53,6,FALSE),0) -> 8.25 | E27: =_xlfn.IFNA(VLOOKUP(E$3,Materials!$B$4:$AH$53,6,FALSE),0) -> 8.5 | F27: =_xlfn.IFNA(VLOOKUP(F$3,Materials!$B$4:$AH$53,6,FALSE),0) -> 8 | G27: =_xlfn.IFNA(VLOOKUP(G$3,Materials!$B$4:$AH$53,6,FALSE),0) -> 8 | H27: =_xlfn.IFNA(VLOOKUP(H$3,Materials!$B$4:$AH$53,6,FALSE),0) -> 8 | I27: =_xlfn.IFNA(VLOOKUP(I$3,Materials!$B$4:$AH$53,6,FALSE),0) -> 7.75 | J27: =_xlfn.IFNA(VLOOKUP(J$3,Materials!$B$4:$AH$53,6,FALSE),0) -> 7.8 | K27: =_xlfn.IFNA(VLOOKUP(K$3,Materials!$B$4:$AH$53,6,FALSE),0) -> 2 | L27: =_xlfn.IFNA(VLOOKUP(L$3,Materials!$B$4:$AH$53,6,FALSE),0) -> 1 | M27: =_xlfn.IFNA(VLOOKUP(M$3,Materials!$B$4:$AH$53,6,FALSE),0) -> 1 | N27: =_xlfn.IFNA(VLOOKUP(N$3,Materials!$B$4:$AH$53,6,FALSE),0) -> 1 | Q27: Material Type Amounts | S27: MIN | T27: MAX | V27: RESULT
B28: Total | C28: =_xlfn.IFNA(VLOOKUP(C$3,Materials!$B$4:$AH$53,7,FALSE),0) -> 8.5 | D28: =_xlfn.IFNA(VLOOKUP(D$3,Materials!$B$4:$AH$53,7,FALSE),0) -> 8.25 | E28: =_xlfn.IFNA(VLOOKUP(E$3,Materials!$B$4:$AH$53,7,FALSE),0) -> 8.5 | F28: =_xlfn.IFNA(VLOOKUP(F$3,Materials!$B$4:$AH$53,7,FALSE),0) -> 8 | G28: =_xlfn.IFNA(VLOOKUP(G$3,Materials!$B$4:$AH$53,7,FALSE),0) -> 8 | H28: =_xlfn.IFNA(VLOOKUP(H$3,Materials!$B$4:$AH$53,7,FALSE),0) -> 8 | I28: =_xlfn.IFNA(VLOOKUP(I$3,Materials!$B$4:$AH$53,7,FALSE),0) -> 7.75 | J28: =_xlfn.IFNA(VLOOKUP(J$3,Materials!$B$4:$AH$53,7,FALSE),0) -> 7.8 | K28: =_xlfn.IFNA(VLOOKUP(K$3,Materials!$B$4:$AH$53,7,FALSE),0) -> 3.12 | L28: =_xlfn.IFNA(VLOOKUP(L$3,Materials!$B$4:$AH$53,7,FALSE),0) -> 7.4 | M28: =_xlfn.IFNA(VLOOKUP(M$3,Materials!$B$4:$AH$53,7,FALSE),0) -> 7.4 | N28: =_xlfn.IFNA(VLOOKUP(N$3,Materials!$B$4:$AH$53,7,FALSE),0) -> 7.72 | R28: =Materials!B57 -> PrimHighCa | S28: ='Rawmix Optimizer'!S28 -> 0 | T28: ='Rawmix Optimizer'!T28 -> 100 | U28: % | V28: =SUMIF($C$4:$N$4,R28,$C$17:$N$17) -> 74.66552178 | W28: %
A29: Chemical Composition | R29: =Materials!B58 -> PrimLowCa | S29: ='Rawmix Optimizer'!S29 -> 0 | T29: ='Rawmix Optimizer'!T29 -> 100 | U29: % | V29: =SUMIF($C$4:$N$4,R29,$C$17:$N$17) -> 4.136044908 | W29: %
B30: Al2O3 | C30: =_xlfn.IFNA(VLOOKUP(C$3,Materials!$B$4:$AH$53,8,FALSE),0) -> 1.933333333 | D30: =_xlfn.IFNA(VLOOKUP(D$3,Materials!$B$4:$AH$53,8,FALSE),0) -> 1.974444444 | E30: =_xlfn.IFNA(VLOOKUP(E$3,Materials!$B$4:$AH$53,8,FALSE),0) -> 0.9413513957 | F30: =_xlfn.IFNA(VLOOKUP(F$3,Materials!$B$4:$AH$53,8,FALSE),0) -> 2.15726087 | G30: =_xlfn.IFNA(VLOOKUP(G$3,Materials!$B$4:$AH$53,8,FALSE),0) -> 1.013791667 | H30: =_xlfn.IFNA(VLOOKUP(H$3,Materials!$B$4:$AH$53,8,FALSE),0) -> 0.9507916667 | I30: =_xlfn.IFNA(VLOOKUP(I$3,Materials!$B$4:$AH$53,8,FALSE),0) -> 8.86 | J30: =_xlfn.IFNA(VLOOKUP(J$3,Materials!$B$4:$AH$53,8,FALSE),0) -> 11.12 | K30: =_xlfn.IFNA(VLOOKUP(K$3,Materials!$B$4:$AH$53,8,FALSE),0) -> 5.059565773 | L30: =_xlfn.IFNA(VLOOKUP(L$3,Materials!$B$4:$AH$53,8,FALSE),0) -> 7.181930565 | M30: =_xlfn.IFNA(VLOOKUP(M$3,Materials!$B$4:$AH$53,8,FALSE),0) -> 12.90795206 | N30: =_xlfn.IFNA(VLOOKUP(N$3,Materials!$B$4:$AH$53,8,FALSE),0) -> 5.95425221 | R30: =Materials!B59 -> SecHighCa | S30: ='Rawmix Optimizer'!S30 -> 0 | T30: ='Rawmix Optimizer'!T30 -> 100 | U30: % | V30: =SUMIF($C$4:$N$4,R30,$C$17:$N$17) -> 0 | W30: %
B31: CaO | C31: =_xlfn.IFNA(VLOOKUP(C$3,Materials!$B$4:$AH$53,9,FALSE),0) -> 44.53 | D31: =_xlfn.IFNA(VLOOKUP(D$3,Materials!$B$4:$AH$53,9,FALSE),0) -> 43.11555556 | E31: =_xlfn.IFNA(VLOOKUP(E$3,Materials!$B$4:$AH$53,9,FALSE),0) -> 50.21893897 | F31: =_xlfn.IFNA(VLOOKUP(F$3,Materials!$B$4:$AH$53,9,FALSE),0) -> 40.93417391 | G31: =_xlfn.IFNA(VLOOKUP(G$3,Materials!$B$4:$AH$53,9,FALSE),0) -> 41.25908333 | H31: =_xlfn.IFNA(VLOOKUP(H$3,Materials!$B$4:$AH$53,9,FALSE),0) -> 43.89604167 | I31: =_xlfn.IFNA(VLOOKUP(I$3,Materials!$B$4:$AH$53,9,FALSE),0) -> 17.58 | J31: =_xlfn.IFNA(VLOOKUP(J$3,Materials!$B$4:$AH$53,9,FALSE),0) -> 15.72 | K31: =_xlfn.IFNA(VLOOKUP(K$3,Materials!$B$4:$AH$53,9,FALSE),0) -> 33.57905363 | L31: =_xlfn.IFNA(VLOOKUP(L$3,Materials!$B$4:$AH$53,9,FALSE),0) -> 22.09457709 | M31: =_xlfn.IFNA(VLOOKUP(M$3,Materials!$B$4:$AH$53,9,FALSE),0) -> 14.23405254 | N31: =_xlfn.IFNA(VLOOKUP(N$3,Materials!$B$4:$AH$53,9,FALSE),0) -> 31.74291003 | R31: =Materials!B60 -> SecLowCa | S31: ='Rawmix Optimizer'!S31 -> 0 | T31: ='Rawmix Optimizer'!T31 -> 100 | U31: % | V31: =SUMIF($C$4:$N$4,R31,$C$17:$N$17) -> 21.04843331 | W31: %
B32: Fe2O3 | C32: =_xlfn.IFNA(VLOOKUP(C$3,Materials!$B$4:$AH$53,10,FALSE),0) -> 1.606666667 | D32: =_xlfn.IFNA(VLOOKUP(D$3,Materials!$B$4:$AH$53,10,FALSE),0) -> 1.507777778 | E32: =_xlfn.IFNA(VLOOKUP(E$3,Materials!$B$4:$AH$53,10,FALSE),0) -> 0.6189780564 | F32: =_xlfn.IFNA(VLOOKUP(F$3,Materials!$B$4:$AH$53,10,FALSE),0) -> 0.9235615942 | G32: =_xlfn.IFNA(VLOOKUP(G$3,Materials!$B$4:$AH$53,10,FALSE),0) -> 0.448875 | H32: =_xlfn.IFNA(VLOOKUP(H$3,Materials!$B$4:$AH$53,10,FALSE),0) -> 0.4277916667 | I32: =_xlfn.IFNA(VLOOKUP(I$3,Materials!$B$4:$AH$53,10,FALSE),0) -> 3.36 | J32: =_xlfn.IFNA(VLOOKUP(J$3,Materials!$B$4:$AH$53,10,FALSE),0) -> 11.12 | K32: =_xlfn.IFNA(VLOOKUP(K$3,Materials!$B$4:$AH$53,10,FALSE),0) -> 2.469465483 | L32: =_xlfn.IFNA(VLOOKUP(L$3,Materials!$B$4:$AH$53,10,FALSE),0) -> 3.419966936 | M32: =_xlfn.IFNA(VLOOKUP(M$3,Materials!$B$4:$AH$53,10,FALSE),0) -> 5.011626483 | N32: =_xlfn.IFNA(VLOOKUP(N$3,Materials!$B$4:$AH$53,10,FALSE),0) -> 2.469084412
B33: K2O | C33: =_xlfn.IFNA(VLOOKUP(C$3,Materials!$B$4:$AH$53,11,FALSE),0) -> 0.985361532 | D33: =_xlfn.IFNA(VLOOKUP(D$3,Materials!$B$4:$AH$53,11,FALSE),0) -> 1.157066376 | E33: =_xlfn.IFNA(VLOOKUP(E$3,Materials!$B$4:$AH$53,11,FALSE),0) -> 1.766292796 | F33: =_xlfn.IFNA(VLOOKUP(F$3,Materials!$B$4:$AH$53,11,FALSE),0) -> 1.782916312 | G33: =_xlfn.IFNA(VLOOKUP(G$3,Materials!$B$4:$AH$53,11,FALSE),0) -> 1.606106232 | H33: =_xlfn.IFNA(VLOOKUP(H$3,Materials!$B$4:$AH$53,11,FALSE),0) -> 1.732492491 | I33: =_xlfn.IFNA(VLOOKUP(I$3,Materials!$B$4:$AH$53,11,FALSE),0) -> 1.606106232 | J33: =_xlfn.IFNA(VLOOKUP(J$3,Materials!$B$4:$AH$53,11,FALSE),0) -> 1.732492491 | K33: =_xlfn.IFNA(VLOOKUP(K$3,Materials!$B$4:$AH$53,11,FALSE),0) -> 1.021847786 | L33: =_xlfn.IFNA(VLOOKUP(L$3,Materials!$B$4:$AH$53,11,FALSE),0) -> 1.34412654 | M33: =_xlfn.IFNA(VLOOKUP(M$3,Materials!$B$4:$AH$53,11,FALSE),0) -> 2.29053719 | N33: =_xlfn.IFNA(VLOOKUP(N$3,Materials!$B$4:$AH$53,11,FALSE),0) -> 1.209139954 | Q33: = | R33: ='Rawmix Optimizer'!R33 -> PrimHighCa
B34: MgO | C34: =_xlfn.IFNA(VLOOKUP(C$3,Materials!$B$4:$AH$53,12,FALSE),0) -> 0.7633333333 | D34: =_xlfn.IFNA(VLOOKUP(D$3,Materials!$B$4:$AH$53,12,FALSE),0) -> 1.283333333 | E34: =_xlfn.IFNA(VLOOKUP(E$3,Materials!$B$4:$AH$53,12,FALSE),0) -> 0.7630932726 | F34: =_xlfn.IFNA(VLOOKUP(F$3,Materials!$B$4:$AH$53,12,FALSE),0) -> 5.058641304 | G34: =_xlfn.IFNA(VLOOKUP(G$3,Materials!$B$4:$AH$53,12,FALSE),0) -> 10.3838125 | H34: =_xlfn.IFNA(VLOOKUP(H$3,Materials!$B$4:$AH$53,12,FALSE),0) -> 7.571583333 | I34: =_xlfn.IFNA(VLOOKUP(I$3,Materials!$B$4:$AH$53,12,FALSE),0) -> 2.38 | J34: =_xlfn.IFNA(VLOOKUP(J$3,Materials!$B$4:$AH$53,12,FALSE),0) -> 4.02 | K34: =_xlfn.IFNA(VLOOKUP(K$3,Materials!$B$4:$AH$53,12,FALSE),0) -> 2.199811206 | L34: =_xlfn.IFNA(VLOOKUP(L$3,Materials!$B$4:$AH$53,12,FALSE),0) -> 2.497371204 | M34: =_xlfn.IFNA(VLOOKUP(M$3,Materials!$B$4:$AH$53,12,FALSE),0) -> 1.687764245 | N34: =_xlfn.IFNA(VLOOKUP(N$3,Materials!$B$4:$AH$53,12,FALSE),0) -> 2.164258909 | Q34: + | R34: ='Rawmix Optimizer'!R34 -> SecHighCa | S34: ='Rawmix Optimizer'!S34 -> 70 | T34: ='Rawmix Optimizer'!T34 -> 100 | U34: % | V34: =SUMIF(R28:R31,R33,V28:V31)+SUMIF(R28:R31,R34,V28:V31) -> 74.66552178 | W34: %
B35: Na2O | C35: =_xlfn.IFNA(VLOOKUP(C$3,Materials!$B$4:$AH$53,13,FALSE),0) -> 0.237252097 | D35: =_xlfn.IFNA(VLOOKUP(D$3,Materials!$B$4:$AH$53,13,FALSE),0) -> 0.6222940318 | E35: =_xlfn.IFNA(VLOOKUP(E$3,Materials!$B$4:$AH$53,13,FALSE),0) -> 1.338833809 | F35: =_xlfn.IFNA(VLOOKUP(F$3,Materials!$B$4:$AH$53,13,FALSE),0) -> 1.423000495 | G35: =_xlfn.IFNA(VLOOKUP(G$3,Materials!$B$4:$AH$53,13,FALSE),0) -> 1.018024258 | H35: =_xlfn.IFNA(VLOOKUP(H$3,Materials!$B$4:$AH$53,13,FALSE),0) -> 0.478497926 | I35: =_xlfn.IFNA(VLOOKUP(I$3,Materials!$B$4:$AH$53,13,FALSE),0) -> 1.018024258 | J35: =_xlfn.IFNA(VLOOKUP(J$3,Materials!$B$4:$AH$53,13,FALSE),0) -> 0.478497926 | K35: =_xlfn.IFNA(VLOOKUP(K$3,Materials!$B$4:$AH$53,13,FALSE),0) -> 1.00268814 | L35: =_xlfn.IFNA(VLOOKUP(L$3,Materials!$B$4:$AH$53,13,FALSE),0) -> 1.083254643 | M35: =_xlfn.IFNA(VLOOKUP(M$3,Materials!$B$4:$AH$53,13,FALSE),0) -> 1.25893435 | N35: =_xlfn.IFNA(VLOOKUP(N$3,Materials!$B$4:$AH$53,13,FALSE),0) -> 0.3627419862
B36: SiO2 | C36: =_xlfn.IFNA(VLOOKUP(C$3,Materials!$B$4:$AH$53,14,FALSE),0) -> 9.223333333 | D36: =_xlfn.IFNA(VLOOKUP(D$3,Materials!$B$4:$AH$53,14,FALSE),0) -> 10.20888889 | E36: =_xlfn.IFNA(VLOOKUP(E$3,Materials!$B$4:$AH$53,14,FALSE),0) -> 3.762336941 | F36: =_xlfn.IFNA(VLOOKUP(F$3,Materials!$B$4:$AH$53,14,FALSE),0) -> 8.394996377 | G36: =_xlfn.IFNA(VLOOKUP(G$3,Materials!$B$4:$AH$53,14,FALSE),0) -> 4.113708333 | H36: =_xlfn.IFNA(VLOOKUP(H$3,Materials!$B$4:$AH$53,14,FALSE),0) -> 3.728958333 | I36: =_xlfn.IFNA(VLOOKUP(I$3,Materials!$B$4:$AH$53,14,FALSE),0) -> 46.04 | J36: =_xlfn.IFNA(VLOOKUP(J$3,Materials!$B$4:$AH$53,14,FALSE),0) -> 46.9 | K36: =_xlfn.IFNA(VLOOKUP(K$3,Materials!$B$4:$AH$53,14,FALSE),0) -> 24.9643091 | L36: =_xlfn.IFNA(VLOOKUP(L$3,Materials!$B$4:$AH$53,14,FALSE),0) -> 41.46908745 | M36: =_xlfn.IFNA(VLOOKUP(M$3,Materials!$B$4:$AH$53,14,FALSE),0) -> 48.32516808 | N36: =_xlfn.IFNA(VLOOKUP(N$3,Materials!$B$4:$AH$53,14,FALSE),0) -> 27.95962466 | Q36: = | R36: ='Rawmix Optimizer'!R36 -> PrimLowCa
B37: SO3 | C37: =_xlfn.IFNA(VLOOKUP(C$3,Materials!$B$4:$AH$53,15,FALSE),0) -> 0.237252097 | D37: =_xlfn.IFNA(VLOOKUP(D$3,Materials!$B$4:$AH$53,15,FALSE),0) -> 0.6222940318 | E37: =_xlfn.IFNA(VLOOKUP(E$3,Materials!$B$4:$AH$53,15,FALSE),0) -> 1.338833809 | F37: =_xlfn.IFNA(VLOOKUP(F$3,Materials!$B$4:$AH$53,15,FALSE),0) -> 1.423000495 | G37: =_xlfn.IFNA(VLOOKUP(G$3,Materials!$B$4:$AH$53,15,FALSE),0) -> 1.018024258 | H37: =_xlfn.IFNA(VLOOKUP(H$3,Materials!$B$4:$AH$53,15,FALSE),0) -> 0.478497926 | I37: =_xlfn.IFNA(VLOOKUP(I$3,Materials!$B$4:$AH$53,15,FALSE),0) -> 1.018024258 | J37: =_xlfn.IFNA(VLOOKUP(J$3,Materials!$B$4:$AH$53,15,FALSE),0) -> 0.478497926 | K37: =_xlfn.IFNA(VLOOKUP(K$3,Materials!$B$4:$AH$53,15,FALSE),0) -> 0.3122312679 | L37: =_xlfn.IFNA(VLOOKUP(L$3,Materials!$B$4:$AH$53,15,FALSE),0) -> 0.1352079951 | M37: =_xlfn.IFNA(VLOOKUP(M$3,Materials!$B$4:$AH$53,15,FALSE),0) -> 0.09472146273 | N37: =_xlfn.IFNA(VLOOKUP(N$3,Materials!$B$4:$AH$53,15,FALSE),0) -> 0.1476746402 | Q37: + | R37: ='Rawmix Optimizer'!R37 -> SecLowCa | S37: ='Rawmix Optimizer'!S37 -> 0 | T37: ='Rawmix Optimizer'!T37 -> 30 | U37: % | V37: =SUMIF(R28:R31,R36,V28:V31)+SUMIF(R28:R31,R37,V28:V31) -> 25.18447822 | W37: %
B38: LOI | C38: =_xlfn.IFNA(VLOOKUP(C$3,Materials!$B$4:$AH$53,16,FALSE),0) -> 40.48346761 | D38: =_xlfn.IFNA(VLOOKUP(D$3,Materials!$B$4:$AH$53,16,FALSE),0) -> 39.50834556 | E38: =_xlfn.IFNA(VLOOKUP(E$3,Materials!$B$4:$AH$53,16,FALSE),0) -> 39.25134095 | F38: =_xlfn.IFNA(VLOOKUP(F$3,Materials!$B$4:$AH$53,16,FALSE),0) -> 37.90244864 | G38: =_xlfn.IFNA(VLOOKUP(G$3,Materials!$B$4:$AH$53,16,FALSE),0) -> 39.13857442 | H38: =_xlfn.IFNA(VLOOKUP(H$3,Materials!$B$4:$AH$53,16,FALSE),0) -> 40.73534499 | I38: =_xlfn.IFNA(VLOOKUP(I$3,Materials!$B$4:$AH$53,16,FALSE),0) -> 18.13784525 | J38: =_xlfn.IFNA(VLOOKUP(J$3,Materials!$B$4:$AH$53,16,FALSE),0) -> 8.430511657 | K38: =_xlfn.IFNA(VLOOKUP(K$3,Materials!$B$4:$AH$53,16,FALSE),0) -> 29.07 | L38: =_xlfn.IFNA(VLOOKUP(L$3,Materials!$B$4:$AH$53,16,FALSE),0) -> 20.55 | M38: =_xlfn.IFNA(VLOOKUP(M$3,Materials!$B$4:$AH$53,16,FALSE),0) -> 13.97 | N38: =_xlfn.IFNA(VLOOKUP(N$3,Materials!$B$4:$AH$53,16,FALSE),0) -> 27.46083182
B39: Sum | C39: =SUM(C30:C38) -> 100 | D39: =SUM(D30:D38) -> 100 | E39: 100 | F39: 100 | G39: 100 | H39: 100 | I39: 100 | J39: 100 | K39: 99.67897239 | L39: 99.77552242 | M39: 99.7807564 | N39: 99.47051863 | Q39: Size Distribution | S39: MIN | T39: MAX | V39: RESULT
A40: Mineralogical Composition | R40: d10 | S40: ='Rawmix Optimizer'!S40 -> 0 | T40: ='Rawmix Optimizer'!T40 -> 100 | U40: um | V40: =IFERROR(SUMPRODUCT(C50:N50,$C$17:$N$17)/100,0) -> 1.429543157 | W40: um
B41: Calcite | C41: =_xlfn.IFNA(VLOOKUP(C$3,Materials!$B$4:$AH$53,17,FALSE),0) -> 34.53143321 | D41: =_xlfn.IFNA(VLOOKUP(D$3,Materials!$B$4:$AH$53,17,FALSE),0) -> 28.66 | E41: =_xlfn.IFNA(VLOOKUP(E$3,Materials!$B$4:$AH$53,17,FALSE),0) -> 27.13907437 | F41: =_xlfn.IFNA(VLOOKUP(F$3,Materials!$B$4:$AH$53,17,FALSE),0) -> 37.53049457 | G41: =_xlfn.IFNA(VLOOKUP(G$3,Materials!$B$4:$AH$53,17,FALSE),0) -> 48.86 | H41: =_xlfn.IFNA(VLOOKUP(H$3,Materials!$B$4:$AH$53,17,FALSE),0) -> 42.88250788 | I41: =_xlfn.IFNA(VLOOKUP(I$3,Materials!$B$4:$AH$53,17,FALSE),0) -> 37.53049457 | J41: =_xlfn.IFNA(VLOOKUP(J$3,Materials!$B$4:$AH$53,17,FALSE),0) -> 48.86 | K41: =_xlfn.IFNA(VLOOKUP(K$3,Materials!$B$4:$AH$53,17,FALSE),0) -> 50.78921147 | L41: =_xlfn.IFNA(VLOOKUP(L$3,Materials!$B$4:$AH$53,17,FALSE),0) -> 33.33295542 | M41: =_xlfn.IFNA(VLOOKUP(M$3,Materials!$B$4:$AH$53,17,FALSE),0) -> 22.15215536 | N41: =_xlfn.IFNA(VLOOKUP(N$3,Materials!$B$4:$AH$53,17,FALSE),0) -> 53.71 | R41: d20 | S41: ='Rawmix Optimizer'!S41 -> 0 | T41: ='Rawmix Optimizer'!T41 -> 100 | U41: um | V41: =IFERROR(SUMPRODUCT(C51:N51,$C$17:$N$17)/100,0) -> 2.889526034 | W41: um
B42: Dolomite | C42: =_xlfn.IFNA(VLOOKUP(C$3,Materials!$B$4:$AH$53,18,FALSE),0) -> 3.065527194 | D42: =_xlfn.IFNA(VLOOKUP(D$3,Materials!$B$4:$AH$53,18,FALSE),0) -> 2.985 | E42: =_xlfn.IFNA(VLOOKUP(E$3,Materials!$B$4:$AH$53,18,FALSE),0) -> 2.570803592 | F42: =_xlfn.IFNA(VLOOKUP(F$3,Materials!$B$4:$AH$53,18,FALSE),0) -> 1.994899091 | G42: =_xlfn.IFNA(VLOOKUP(G$3,Materials!$B$4:$AH$53,18,FALSE),0) -> 9.305 | H42: =_xlfn.IFNA(VLOOKUP(H$3,Materials!$B$4:$AH$53,18,FALSE),0) -> 9.321057335 | I42: =_xlfn.IFNA(VLOOKUP(I$3,Materials!$B$4:$AH$53,18,FALSE),0) -> 1.994899091 | J42: =_xlfn.IFNA(VLOOKUP(J$3,Materials!$B$4:$AH$53,18,FALSE),0) -> 9.305 | K42: =_xlfn.IFNA(VLOOKUP(K$3,Materials!$B$4:$AH$53,18,FALSE),0) -> 5.188187871 | L42: =_xlfn.IFNA(VLOOKUP(L$3,Materials!$B$4:$AH$53,18,FALSE),0) -> 5.262799873 | M42: =_xlfn.IFNA(VLOOKUP(M$3,Materials!$B$4:$AH$53,18,FALSE),0) -> 0.3595817328 | N42: =_xlfn.IFNA(VLOOKUP(N$3,Materials!$B$4:$AH$53,18,FALSE),0) -> 5.66 | R42: d50 | S42: ='Rawmix Optimizer'!S42 -> 0 | T42: ='Rawmix Optimizer'!T42 -> 100 | U42: um | V42: =IFERROR(SUMPRODUCT(C52:N52,$C$17:$N$17)/100,0) -> 9.693145753 | W42: um
B43: Quartz | C43: =_xlfn.IFNA(VLOOKUP(C$3,Materials!$B$4:$AH$53,19,FALSE),0) -> 22.33809867 | D43: =_xlfn.IFNA(VLOOKUP(D$3,Materials!$B$4:$AH$53,19,FALSE),0) -> 29.175 | E43: =_xlfn.IFNA(VLOOKUP(E$3,Materials!$B$4:$AH$53,19,FALSE),0) -> 24.69145752 | F43: =_xlfn.IFNA(VLOOKUP(F$3,Materials!$B$4:$AH$53,19,FALSE),0) -> 23.98758039 | G43: =_xlfn.IFNA(VLOOKUP(G$3,Materials!$B$4:$AH$53,19,FALSE),0) -> 23.495 | H43: =_xlfn.IFNA(VLOOKUP(H$3,Materials!$B$4:$AH$53,19,FALSE),0) -> 22.37547622 | I43: =_xlfn.IFNA(VLOOKUP(I$3,Materials!$B$4:$AH$53,19,FALSE),0) -> 23.98758039 | J43: =_xlfn.IFNA(VLOOKUP(J$3,Materials!$B$4:$AH$53,19,FALSE),0) -> 23.495 | K43: =_xlfn.IFNA(VLOOKUP(K$3,Materials!$B$4:$AH$53,19,FALSE),0) -> 15.52606549 | L43: =_xlfn.IFNA(VLOOKUP(L$3,Materials!$B$4:$AH$53,19,FALSE),0) -> 27.8445422 | M43: =_xlfn.IFNA(VLOOKUP(M$3,Materials!$B$4:$AH$53,19,FALSE),0) -> 23.16794708 | N43: =_xlfn.IFNA(VLOOKUP(N$3,Materials!$B$4:$AH$53,19,FALSE),0) -> 18.78 | R43: d80 | S43: ='Rawmix Optimizer'!S43 -> 0 | T43: ='Rawmix Optimizer'!T43 -> 100 | U43: um | V43: =IFERROR(SUMPRODUCT(C53:N53,$C$17:$N$17)/100,0) -> 27.85799312 | W43: um
B44: Fspars | C44: =_xlfn.IFNA(VLOOKUP(C$3,Materials!$B$4:$AH$53,20,FALSE),0) -> 7.799675295 | D44: =_xlfn.IFNA(VLOOKUP(D$3,Materials!$B$4:$AH$53,20,FALSE),0) -> 11.945 | E44: =_xlfn.IFNA(VLOOKUP(E$3,Materials!$B$4:$AH$53,20,FALSE),0) -> 10.92677872 | F44: =_xlfn.IFNA(VLOOKUP(F$3,Materials!$B$4:$AH$53,20,FALSE),0) -> 5.421379463 | G44: =_xlfn.IFNA(VLOOKUP(G$3,Materials!$B$4:$AH$53,20,FALSE),0) -> 4.155 | H44: =_xlfn.IFNA(VLOOKUP(H$3,Materials!$B$4:$AH$53,20,FALSE),0) -> 4.062602888 | I44: =_xlfn.IFNA(VLOOKUP(I$3,Materials!$B$4:$AH$53,20,FALSE),0) -> 5.421379463 | J44: =_xlfn.IFNA(VLOOKUP(J$3,Materials!$B$4:$AH$53,20,FALSE),0) -> 4.155 | K44: =_xlfn.IFNA(VLOOKUP(K$3,Materials!$B$4:$AH$53,20,FALSE),0) -> 7.321436659 | L44: =_xlfn.IFNA(VLOOKUP(L$3,Materials!$B$4:$AH$53,20,FALSE),0) -> 8.009840824 | M44: =_xlfn.IFNA(VLOOKUP(M$3,Materials!$B$4:$AH$53,20,FALSE),0) -> 11.58023901 | N44: =_xlfn.IFNA(VLOOKUP(N$3,Materials!$B$4:$AH$53,20,FALSE),0) -> 7.41 | R44: d90 | S44: ='Rawmix Optimizer'!S44 -> 0 | T44: ='Rawmix Optimizer'!T44 -> 100 | U44: um | V44: =IFERROR(SUMPRODUCT(C54:N54,$C$17:$N$17)/100,0) -> 42.56571539 | W44: um
B45: Illite | C45: =_xlfn.IFNA(VLOOKUP(C$3,Materials!$B$4:$AH$53,21,FALSE),0) -> 23.90751464 | D45: =_xlfn.IFNA(VLOOKUP(D$3,Materials!$B$4:$AH$53,21,FALSE),0) -> 15.64158879 | E45: =_xlfn.IFNA(VLOOKUP(E$3,Materials!$B$4:$AH$53,21,FALSE),0) -> 21.05409026 | F45: =_xlfn.IFNA(VLOOKUP(F$3,Materials!$B$4:$AH$53,21,FALSE),0) -> 22.63195367 | G45: =_xlfn.IFNA(VLOOKUP(G$3,Materials!$B$4:$AH$53,21,FALSE),0) -> 10.16149871 | H45: =_xlfn.IFNA(VLOOKUP(H$3,Materials!$B$4:$AH$53,21,FALSE),0) -> 15.72633491 | I45: =_xlfn.IFNA(VLOOKUP(I$3,Materials!$B$4:$AH$53,21,FALSE),0) -> 22.63195367 | J45: =_xlfn.IFNA(VLOOKUP(J$3,Materials!$B$4:$AH$53,21,FALSE),0) -> 10.16149871 | K45: =_xlfn.IFNA(VLOOKUP(K$3,Materials!$B$4:$AH$53,21,FALSE),0) -> 12.2831543 | L45: =_xlfn.IFNA(VLOOKUP(L$3,Materials!$B$4:$AH$53,21,FALSE),0) -> 16.17394561 | M45: =_xlfn.IFNA(VLOOKUP(M$3,Materials!$B$4:$AH$53,21,FALSE),0) -> 31.86104074 | N45: =_xlfn.IFNA(VLOOKUP(N$3,Materials!$B$4:$AH$53,21,FALSE),0) -> 8.357375271
B46: Chlorite | C46: =_xlfn.IFNA(VLOOKUP(C$3,Materials!$B$4:$AH$53,22,FALSE),0) -> 4.321581239 | D46: =_xlfn.IFNA(VLOOKUP(D$3,Materials!$B$4:$AH$53,22,FALSE),0) -> 5.884796232 | E46: =_xlfn.IFNA(VLOOKUP(E$3,Materials!$B$4:$AH$53,22,FALSE),0) -> 6.636328879 | F46: =_xlfn.IFNA(VLOOKUP(F$3,Materials!$B$4:$AH$53,22,FALSE),0) -> 6.786265278 | G46: =_xlfn.IFNA(VLOOKUP(G$3,Materials!$B$4:$AH$53,22,FALSE),0) -> 2.417469753 | H46: =_xlfn.IFNA(VLOOKUP(H$3,Materials!$B$4:$AH$53,22,FALSE),0) -> 3.550179327 | I46: =_xlfn.IFNA(VLOOKUP(I$3,Materials!$B$4:$AH$53,22,FALSE),0) -> 6.786265278 | J46: =_xlfn.IFNA(VLOOKUP(J$3,Materials!$B$4:$AH$53,22,FALSE),0) -> 2.417469753 | K46: =_xlfn.IFNA(VLOOKUP(K$3,Materials!$B$4:$AH$53,22,FALSE),0) -> 4.955106495 | L46: =_xlfn.IFNA(VLOOKUP(L$3,Materials!$B$4:$AH$53,22,FALSE),0) -> 5.217725355 | M46: =_xlfn.IFNA(VLOOKUP(M$3,Materials!$B$4:$AH$53,22,FALSE),0) -> 3.07820812 | N46: =_xlfn.IFNA(VLOOKUP(N$3,Materials!$B$4:$AH$53,22,FALSE),0) -> 3.336374828 | Q46: Klinker Composition | S46: MIN | T46: MAX | V46: RESULT
B47: Smectites | C47: =_xlfn.IFNA(VLOOKUP(C$3,Materials!$B$4:$AH$53,23,FALSE),0) -> 3.358907016 | D47: =_xlfn.IFNA(VLOOKUP(D$3,Materials!$B$4:$AH$53,23,FALSE),0) -> 4.46105919 | E47: =_xlfn.IFNA(VLOOKUP(E$3,Materials!$B$4:$AH$53,23,FALSE),0) -> 6.078269302 | F47: =_xlfn.IFNA(VLOOKUP(F$3,Materials!$B$4:$AH$53,23,FALSE),0) -> 1.297491202 | G47: =_xlfn.IFNA(VLOOKUP(G$3,Materials!$B$4:$AH$53,23,FALSE),0) -> 0.5921619294 | H47: =_xlfn.IFNA(VLOOKUP(H$3,Materials!$B$4:$AH$53,23,FALSE),0) -> 0.8664647333 | I47: =_xlfn.IFNA(VLOOKUP(I$3,Materials!$B$4:$AH$53,23,FALSE),0) -> 1.297491202 | J47: =_xlfn.IFNA(VLOOKUP(J$3,Materials!$B$4:$AH$53,23,FALSE),0) -> 0.5921619294 | K47: =_xlfn.IFNA(VLOOKUP(K$3,Materials!$B$4:$AH$53,23,FALSE),0) -> 2.636535645 | L47: =_xlfn.IFNA(VLOOKUP(L$3,Materials!$B$4:$AH$53,23,FALSE),0) -> 2.618446985 | M47: =_xlfn.IFNA(VLOOKUP(M$3,Materials!$B$4:$AH$53,23,FALSE),0) -> 6.896329165 | N47: =_xlfn.IFNA(VLOOKUP(N$3,Materials!$B$4:$AH$53,23,FALSE),0) -> 1.418221258 | R47: LSF | S47: ='Rawmix Optimizer'!S47 -> 98 | T47: ='Rawmix Optimizer'!T47 -> 102 | V47: =IFERROR((100*V7)/(2.8*V12+1.2*V6+0.65*V8),0) -> 98.80571419
B48: Kaolinite | C48: =_xlfn.IFNA(VLOOKUP(C$3,Materials!$B$4:$AH$53,24,FALSE),0) -> 0.6772627315 | D48: =_xlfn.IFNA(VLOOKUP(D$3,Materials!$B$4:$AH$53,24,FALSE),0) -> 0.8625557929 | E48: =_xlfn.IFNA(VLOOKUP(E$3,Materials!$B$4:$AH$53,24,FALSE),0) -> 0.9033115534 | F48: =_xlfn.IFNA(VLOOKUP(F$3,Materials!$B$4:$AH$53,24,FALSE),0) -> 0.3499363311 | G48: =_xlfn.IFNA(VLOOKUP(G$3,Materials!$B$4:$AH$53,24,FALSE),0) -> 0.5788696101 | H48: =_xlfn.IFNA(VLOOKUP(H$3,Materials!$B$4:$AH$53,24,FALSE),0) -> 1.215376706 | I48: =_xlfn.IFNA(VLOOKUP(I$3,Materials!$B$4:$AH$53,24,FALSE),0) -> 0.3499363311 | J48: =_xlfn.IFNA(VLOOKUP(J$3,Materials!$B$4:$AH$53,24,FALSE),0) -> 0.5788696101 | K48: =_xlfn.IFNA(VLOOKUP(K$3,Materials!$B$4:$AH$53,24,FALSE),0) -> 1.300203564 | L48: =_xlfn.IFNA(VLOOKUP(L$3,Materials!$B$4:$AH$53,24,FALSE),0) -> 1.539882055 | M48: =_xlfn.IFNA(VLOOKUP(M$3,Materials!$B$4:$AH$53,24,FALSE),0) -> 0.9044219733 | N48: =_xlfn.IFNA(VLOOKUP(N$3,Materials!$B$4:$AH$53,24,FALSE),0) -> 0.898028643 | R48: SR | S48: ='Rawmix Optimizer'!S48 -> 2.4 | T48: ='Rawmix Optimizer'!T48 -> 2.8 | V48: =IFERROR(V12/(V6+V8),0) -> 2.737435324
A49: Size Distribution | R49: AR | S49: ='Rawmix Optimizer'!S49 -> 1.7 | T49: ='Rawmix Optimizer'!T49 -> 2.1 | V49: =IFERROR(V6/V8,0) -> 1.839215551
B50: d10 | C50: =_xlfn.IFNA(VLOOKUP(C$3,Materials!$B$4:$AH$53,25,FALSE),0) -> 1.157 | D50: =_xlfn.IFNA(VLOOKUP(D$3,Materials!$B$4:$AH$53,25,FALSE),0) -> 1.163 | E50: =_xlfn.IFNA(VLOOKUP(E$3,Materials!$B$4:$AH$53,25,FALSE),0) -> 1.407 | F50: =_xlfn.IFNA(VLOOKUP(F$3,Materials!$B$4:$AH$53,25,FALSE),0) -> 1.639 | G50: =_xlfn.IFNA(VLOOKUP(G$3,Materials!$B$4:$AH$53,25,FALSE),0) -> 1.283 | H50: =_xlfn.IFNA(VLOOKUP(H$3,Materials!$B$4:$AH$53,25,FALSE),0) -> 1.464 | I50: =_xlfn.IFNA(VLOOKUP(I$3,Materials!$B$4:$AH$53,25,FALSE),0) -> 1.639 | J50: =_xlfn.IFNA(VLOOKUP(J$3,Materials!$B$4:$AH$53,25,FALSE),0) -> 1.283 | K50: =_xlfn.IFNA(VLOOKUP(K$3,Materials!$B$4:$AH$53,25,FALSE),0) -> 1.077 | L50: =_xlfn.IFNA(VLOOKUP(L$3,Materials!$B$4:$AH$53,25,FALSE),0) -> 1.303 | M50: =_xlfn.IFNA(VLOOKUP(M$3,Materials!$B$4:$AH$53,25,FALSE),0) -> 1.615 | N50: =_xlfn.IFNA(VLOOKUP(N$3,Materials!$B$4:$AH$53,25,FALSE),0) -> 1.157 | R50: Na_eq | S50: ='Rawmix Optimizer'!S50 -> 0.1 | T50: ='Rawmix Optimizer'!T50 -> 5 | V50: =IFERROR(SUMPRODUCT(C59:N59,$C$17:$N$17)/100,0) -> 2.291041765
B51: d20 | C51: =_xlfn.IFNA(VLOOKUP(C$3,Materials!$B$4:$AH$53,26,FALSE),0) -> 2.179 | D51: =_xlfn.IFNA(VLOOKUP(D$3,Materials!$B$4:$AH$53,26,FALSE),0) -> 2.203 | E51: =_xlfn.IFNA(VLOOKUP(E$3,Materials!$B$4:$AH$53,26,FALSE),0) -> 3.024 | F51: =_xlfn.IFNA(VLOOKUP(F$3,Materials!$B$4:$AH$53,26,FALSE),0) -> 3.185 | G51: =_xlfn.IFNA(VLOOKUP(G$3,Materials!$B$4:$AH$53,26,FALSE),0) -> 2.485 | H51: =_xlfn.IFNA(VLOOKUP(H$3,Materials!$B$4:$AH$53,26,FALSE),0) -> 2.712 | I51: =_xlfn.IFNA(VLOOKUP(I$3,Materials!$B$4:$AH$53,26,FALSE),0) -> 3.185 | J51: =_xlfn.IFNA(VLOOKUP(J$3,Materials!$B$4:$AH$53,26,FALSE),0) -> 2.485 | K51: =_xlfn.IFNA(VLOOKUP(K$3,Materials!$B$4:$AH$53,26,FALSE),0) -> 2.086 | L51: =_xlfn.IFNA(VLOOKUP(L$3,Materials!$B$4:$AH$53,26,FALSE),0) -> 2.697 | M51: =_xlfn.IFNA(VLOOKUP(M$3,Materials!$B$4:$AH$53,26,FALSE),0) -> 2.997 | N51: =_xlfn.IFNA(VLOOKUP(N$3,Materials!$B$4:$AH$53,26,FALSE),0) -> 2.273
B52: d50 | C52: =_xlfn.IFNA(VLOOKUP(C$3,Materials!$B$4:$AH$53,27,FALSE),0) -> 7.958 | D52: =_xlfn.IFNA(VLOOKUP(D$3,Materials!$B$4:$AH$53,27,FALSE),0) -> 7.519 | E52: =_xlfn.IFNA(VLOOKUP(E$3,Materials!$B$4:$AH$53,27,FALSE),0) -> 10.29 | F52: =_xlfn.IFNA(VLOOKUP(F$3,Materials!$B$4:$AH$53,27,FALSE),0) -> 10.138 | G52: =_xlfn.IFNA(VLOOKUP(G$3,Materials!$B$4:$AH$53,27,FALSE),0) -> 7.51 | H52: =_xlfn.IFNA(VLOOKUP(H$3,Materials!$B$4:$AH$53,27,FALSE),0) -> 8.264 | I52: =_xlfn.IFNA(VLOOKUP(I$3,Materials!$B$4:$AH$53,27,FALSE),0) -> 10.138 | J52: =_xlfn.IFNA(VLOOKUP(J$3,Materials!$B$4:$AH$53,27,FALSE),0) -> 7.51 | K52: =_xlfn.IFNA(VLOOKUP(K$3,Materials!$B$4:$AH$53,27,FALSE),0) -> 8.971 | L52: =_xlfn.IFNA(VLOOKUP(L$3,Materials!$B$4:$AH$53,27,FALSE),0) -> 13.067 | M52: =_xlfn.IFNA(VLOOKUP(M$3,Materials!$B$4:$AH$53,27,FALSE),0) -> 7.832 | N52: =_xlfn.IFNA(VLOOKUP(N$3,Materials!$B$4:$AH$53,27,FALSE),0) -> 8.702 | Q52: Costs | V52: RESULT
B53: d80 | C53: =_xlfn.IFNA(VLOOKUP(C$3,Materials!$B$4:$AH$53,28,FALSE),0) -> 27.535 | D53: =_xlfn.IFNA(VLOOKUP(D$3,Materials!$B$4:$AH$53,28,FALSE),0) -> 23.002 | E53: =_xlfn.IFNA(VLOOKUP(E$3,Materials!$B$4:$AH$53,28,FALSE),0) -> 26.619 | F53: =_xlfn.IFNA(VLOOKUP(F$3,Materials!$B$4:$AH$53,28,FALSE),0) -> 29.743 | G53: =_xlfn.IFNA(VLOOKUP(G$3,Materials!$B$4:$AH$53,28,FALSE),0) -> 24.65 | H53: =_xlfn.IFNA(VLOOKUP(H$3,Materials!$B$4:$AH$53,28,FALSE),0) -> 24.249 | I53: =_xlfn.IFNA(VLOOKUP(I$3,Materials!$B$4:$AH$53,28,FALSE),0) -> 29.743 | J53: =_xlfn.IFNA(VLOOKUP(J$3,Materials!$B$4:$AH$53,28,FALSE),0) -> 24.65 | K53: =_xlfn.IFNA(VLOOKUP(K$3,Materials!$B$4:$AH$53,28,FALSE),0) -> 37.7 | L53: =_xlfn.IFNA(VLOOKUP(L$3,Materials!$B$4:$AH$53,28,FALSE),0) -> 45.17 | M53: =_xlfn.IFNA(VLOOKUP(M$3,Materials!$B$4:$AH$53,28,FALSE),0) -> 19.591 | N53: =_xlfn.IFNA(VLOOKUP(N$3,Materials!$B$4:$AH$53,28,FALSE),0) -> 25.249 | R53: Transport | V53: =IFERROR(SUMPRODUCT(C26:N26,C17:N17)/100,0) -> 0.9194197318 | W53: CHF/t
B54: d90 | C54: =_xlfn.IFNA(VLOOKUP(C$3,Materials!$B$4:$AH$53,29,FALSE),0) -> 42.628 | D54: =_xlfn.IFNA(VLOOKUP(D$3,Materials!$B$4:$AH$53,29,FALSE),0) -> 34.874 | E54: =_xlfn.IFNA(VLOOKUP(E$3,Materials!$B$4:$AH$53,29,FALSE),0) -> 39.705 | F54: =_xlfn.IFNA(VLOOKUP(F$3,Materials!$B$4:$AH$53,29,FALSE),0) -> 44.734 | G54: =_xlfn.IFNA(VLOOKUP(G$3,Materials!$B$4:$AH$53,29,FALSE),0) -> 44.186 | H54: =_xlfn.IFNA(VLOOKUP(H$3,Materials!$B$4:$AH$53,29,FALSE),0) -> 37.713 | I54: =_xlfn.IFNA(VLOOKUP(I$3,Materials!$B$4:$AH$53,29,FALSE),0) -> 44.734 | J54: =_xlfn.IFNA(VLOOKUP(J$3,Materials!$B$4:$AH$53,29,FALSE),0) -> 44.186 | K54: =_xlfn.IFNA(VLOOKUP(K$3,Materials!$B$4:$AH$53,29,FALSE),0) -> 60.242 | L54: =_xlfn.IFNA(VLOOKUP(L$3,Materials!$B$4:$AH$53,29,FALSE),0) -> 66.618 | M54: =_xlfn.IFNA(VLOOKUP(M$3,Materials!$B$4:$AH$53,29,FALSE),0) -> 32.105 | N54: =_xlfn.IFNA(VLOOKUP(N$3,Materials!$B$4:$AH$53,29,FALSE),0) -> 37.128 | R54: Material | V54: =IFERROR(SUMPRODUCT(C27:N27,C17:N17)/100,0) -> 6.811293619 | W54: CHF/t
A55: Klinker Composition | R55: Total | V55: =IFERROR(SUMPRODUCT(C28:N28,C17:N17)/100,0) -> 7.730713351 | W55: CHF/t
B56: LSF | C56: =_xlfn.IFNA(VLOOKUP(C$3,Materials!$B$4:$AH$53,30,FALSE),0) -> 152.553986 | D56: =_xlfn.IFNA(VLOOKUP(D$3,Materials!$B$4:$AH$53,30,FALSE),0) -> 135.0134043 | E56: =_xlfn.IFNA(VLOOKUP(E$3,Materials!$B$4:$AH$53,30,FALSE),0) -> 416.1847715 | F56: =_xlfn.IFNA(VLOOKUP(F$3,Materials!$B$4:$AH$53,30,FALSE),0) -> 153.3401252 | G56: =_xlfn.IFNA(VLOOKUP(G$3,Materials!$B$4:$AH$53,30,FALSE),0) -> 316.7270048 | H56: =_xlfn.IFNA(VLOOKUP(H$3,Materials!$B$4:$AH$53,30,FALSE),0) -> 370.1153395 | I56: =_xlfn.IFNA(VLOOKUP(I$3,Materials!$B$4:$AH$53,30,FALSE),0) -> 12.40404154 | J56: =_xlfn.IFNA(VLOOKUP(J$3,Materials!$B$4:$AH$53,30,FALSE),0) -> 10.34945883 | K56: =_xlfn.IFNA(VLOOKUP(K$3,Materials!$B$4:$AH$53,30,FALSE),0) -> 43.28497466 | L56: =_xlfn.IFNA(VLOOKUP(L$3,Materials!$B$4:$AH$53,30,FALSE),0) -> 17.40350701 | M56: =_xlfn.IFNA(VLOOKUP(M$3,Materials!$B$4:$AH$53,30,FALSE),0) -> 9.23943725 | N56: =_xlfn.IFNA(VLOOKUP(N$3,Materials!$B$4:$AH$53,30,FALSE),0) -> 36.4706112 | R56: ="Total for "&FIXED(V3,1,TRUE)&" tons" -> Total for 1198,2 tons | V56: =V55*V3 -> 9262.940737 | W56: CHF
B57: SR | C57: =_xlfn.IFNA(VLOOKUP(C$3,Materials!$B$4:$AH$53,31,FALSE),0) -> 2.605461394 | D57: =_xlfn.IFNA(VLOOKUP(D$3,Materials!$B$4:$AH$53,31,FALSE),0) -> 2.931716656 | E57: =_xlfn.IFNA(VLOOKUP(E$3,Materials!$B$4:$AH$53,31,FALSE),0) -> 2.411245225 | F57: =_xlfn.IFNA(VLOOKUP(F$3,Materials!$B$4:$AH$53,31,FALSE),0) -> 2.724920529 | G57: =_xlfn.IFNA(VLOOKUP(G$3,Materials!$B$4:$AH$53,31,FALSE),0) -> 2.812471513 | H57: =_xlfn.IFNA(VLOOKUP(H$3,Materials!$B$4:$AH$53,31,FALSE),0) -> 2.70492051 | I57: =_xlfn.IFNA(VLOOKUP(I$3,Materials!$B$4:$AH$53,31,FALSE),0) -> 3.767594108 | J57: =_xlfn.IFNA(VLOOKUP(J$3,Materials!$B$4:$AH$53,31,FALSE),0) -> 2.10881295 | K57: =_xlfn.IFNA(VLOOKUP(K$3,Materials!$B$4:$AH$53,31,FALSE),0) -> 3.315739868 | L57: =_xlfn.IFNA(VLOOKUP(L$3,Materials!$B$4:$AH$53,31,FALSE),0) -> 3.911477869 | M57: =_xlfn.IFNA(VLOOKUP(M$3,Materials!$B$4:$AH$53,31,FALSE),0) -> 2.696780394 | N57: =_xlfn.IFNA(VLOOKUP(N$3,Materials!$B$4:$AH$53,31,FALSE),0) -> 3.319305154
B58: AR | C58: =_xlfn.IFNA(VLOOKUP(C$3,Materials!$B$4:$AH$53,32,FALSE),0) -> 1.203319502 | D58: =_xlfn.IFNA(VLOOKUP(D$3,Materials!$B$4:$AH$53,32,FALSE),0) -> 1.309506264 | E58: =_xlfn.IFNA(VLOOKUP(E$3,Materials!$B$4:$AH$53,32,FALSE),0) -> 1.520815457 | F58: =_xlfn.IFNA(VLOOKUP(F$3,Materials!$B$4:$AH$53,32,FALSE),0) -> 2.335806169 | G58: =_xlfn.IFNA(VLOOKUP(G$3,Materials!$B$4:$AH$53,32,FALSE),0) -> 2.258516662 | H58: =_xlfn.IFNA(VLOOKUP(H$3,Materials!$B$4:$AH$53,32,FALSE),0) -> 2.222557709 | I58: =_xlfn.IFNA(VLOOKUP(I$3,Materials!$B$4:$AH$53,32,FALSE),0) -> 2.636904762 | J58: =_xlfn.IFNA(VLOOKUP(J$3,Materials!$B$4:$AH$53,32,FALSE),0) -> 1 | K58: =_xlfn.IFNA(VLOOKUP(K$3,Materials!$B$4:$AH$53,32,FALSE),0) -> 2.048850575 | L58: =_xlfn.IFNA(VLOOKUP(L$3,Materials!$B$4:$AH$53,32,FALSE),0) -> 2.1 | M58: =_xlfn.IFNA(VLOOKUP(M$3,Materials!$B$4:$AH$53,32,FALSE),0) -> 2.575601375 | N58: =_xlfn.IFNA(VLOOKUP(N$3,Materials!$B$4:$AH$53,32,FALSE),0) -> 2.411522336
B59: Na_eq | C59: =_xlfn.IFNA(VLOOKUP(C$3,Materials!$B$4:$AH$53,33,FALSE),0) -> 0.8856199851 | D59: =_xlfn.IFNA(VLOOKUP(D$3,Materials!$B$4:$AH$53,33,FALSE),0) -> 1.383643707 | E59: =_xlfn.IFNA(VLOOKUP(E$3,Materials!$B$4:$AH$53,33,FALSE),0) -> 2.501054469 | F59: =_xlfn.IFNA(VLOOKUP(F$3,Materials!$B$4:$AH$53,33,FALSE),0) -> 2.596159428 | G59: =_xlfn.IFNA(VLOOKUP(G$3,Materials!$B$4:$AH$53,33,FALSE),0) -> 2.074842158 | H59: =_xlfn.IFNA(VLOOKUP(H$3,Materials!$B$4:$AH$53,33,FALSE),0) -> 1.618477985 | I59: =_xlfn.IFNA(VLOOKUP(I$3,Materials!$B$4:$AH$53,33,FALSE),0) -> 2.074842158 | J59: =_xlfn.IFNA(VLOOKUP(J$3,Materials!$B$4:$AH$53,33,FALSE),0) -> 1.618477985 | K59: =_xlfn.IFNA(VLOOKUP(K$3,Materials!$B$4:$AH$53,33,FALSE),0) -> 1.675063983 | L59: =_xlfn.IFNA(VLOOKUP(L$3,Materials!$B$4:$AH$53,33,FALSE),0) -> 1.967689907 | M59: =_xlfn.IFNA(VLOOKUP(M$3,Materials!$B$4:$AH$53,33,FALSE),0) -> 2.766107821 | N59: =_xlfn.IFNA(VLOOKUP(N$3,Materials!$B$4:$AH$53,33,FALSE),0) -> 1.158356076
A61: ButtonHelpers
B62: MINposs | C62: =0 -> 0 | D62: =0 -> 0 | E62: =0 -> 0 | F62: =0 -> 0 | G62: =0 -> 0 | H62: =0 -> 0 | I62: =0 -> 0 | J62: =0 -> 0 | K62: =0 -> 0 | L62: =0 -> 0 | M62: =0 -> 0 | N62: =0 -> 0
B63: MAXposs | C63: =C24 -> 5000 | D63: =D24 -> 5000 | E63: 5000 | F63: 5000 | G63: 5000 | H63: 5000 | I63: 5000 | J63: 5000 | K63: 100 | L63: 50 | M63: 80 | N63: 40
B64: ButtV | C64: 0 | D64: 0 | E64: 532.6944982 | F64: 254.3202148 | G64: 0 | H64: 108.9715484 | I64: 0 | J64: 49.6325389 | K64: 99.6 | L64: 33 | M64: 80.4 | N64: 39.6
B65: Value | C65: =ROUND((C64-C8),0) -> 0 | D65: =ROUND((D64-D8),0) -> 0 | E65: 0 | F65: 0 | G65: 0 | H65: 0 | I65: 0 | J65: 0 | K65: 0 | L65: 0 | M65: 0 | N65: 0
A68: TargetTons | C68: =S3 -> 1200 | D68: t
B69: TTvar | C69: =S4 -> 0.15 | D69: %
B70: TTmin | C70: =C68-(C69/100*C68) -> 1198.2 | D70: t
B71: TTmax | C71: =C68+(C69/100*C68) -> 1201.8 | D71: t
A73: AmountSum | C73: =SUM(C17:N17) -> 99.85
B74: ASmin | C74: =C70*100/C68 -> 99.85
B75: ASmax | C75: =C71*100/C68 -> 100.15
